Workbook

Sheet Fiche_releve
P1: R2C1F4-B | R1: ATTENTION, VOUS ETES A LA FIN DE LA FEUILLE DE RELEVES
C3: N° AFFAIRE : | F3: OPERATEUR : | J3: DATE :
A4: FREQUENCE DE RELEVE : | D4: 0.25 | G4: Pièce n° | H4: Pièce n° | I4: Pièce n° | J4: Pièce n° | K4: Pièce n° | L4: Pièce n° | M4: Pièce n° | N4: Pièce n° | O4: Pièce n° | P4: Pièce n° | Q4: Pièce n° | R4: Pièce n° | S4: Pièce n° | T4: Pièce n° | U4: Pièce n° | V4: Pièce n° | W4: Pièce n° | X4: Pièce n° | Y4: Pièce n° | Z4: Pièce n° | AA4: Pièce n° | AB4: Pièce n° | AC4: Pièce n° | AD4: Pièce n° | AE4: Pièce n° | AF4: Pièce n° | AG4: Pièce n°
A5: Repère | B5: COTE / TOL. Cible | D5: FREQUENCE du CONTROLE | E5: MOYEN de CONTRÔLE Réf. Moyen | F5: REPERE OUTIL | G5: 1 | H5: =G5+(1/D4) -> 5 | I5: =H5+(1/D4) -> 9 | J5: =I5+(1/D4) -> 13 | K5: =J5+(1/D4) -> 17 | L5: =K5+(1/D4) -> 21 | M5: =L5+(1/D4) -> 25 | N5: =M5+(1/D4) -> 29 | O5: =N5+(1/D4) -> 33 | P5: =O5+(1/D4) -> 37 | Q5: =P5+(1/D4) -> 41 | R5: =Q5+1/D4 -> 45 | S5: =R5+(1/D4) -> 49 | T5: =S5+(1/D4) -> 53 | U5: =T5+(1/D4) -> 57 | V5: =U5+(1/D4) -> 61 | W5: =V5+(1/D4) -> 65 | X5: =W5+(1/D4) -> 69 | Y5: =X5+(1/D4) -> 73 | Z5: =Y5+(1/D4) -> 77 | AA5: =Z5+(1/D4) -> 81 | AB5: =AA5+(1/D4) -> 85 | AC5: =AB5+(1/D4) -> 89 | AD5: =AC5+(1/D4) -> 93 | AE5: =AD5+(1/D4) -> 97 | AF5: =AE5+(1/D4) -> 101 | AG5: =AF5+(1/D4) -> 105
A6: 1 | B6: 2.5 | C6: +0,1 | D6: 0.25 | E6: ODITEST | F6: 3 | H6: 2.52 | I6: 2.53 | J6: 2.57
C7: -0,1
A8: 2 | B8: 2 | C8: +0,1 | D8: 0.25 | E8: ODITEST | F8: 3 | G8: 2.01 | H8: 2.02 | I8: 2.03 | J8: 2 | K8: 1.98 | L8: 2.01 | M8: 2.03
C9: -0,1
A10: 3 | B10: 2 | C10: +0,1 | D10: 0.25 | E10: PALMER | F10: 3/4 | G10: 2.01
C11: -0,1
A12: 4 | B12: 21 | C12: +0,1 | D12: 0.25 | E12: PAC | F12: 3 | G12: 21.01 | H12: 21.02 | I12: 21.03 | J12: 21.06 | K12: 21.07 | L12: 21.001
C13: -0,1
A14: 5 | B14: 25 | C14: +0,2 | D14: 0.25 | E14: PAC | F14: 4 | G14: 25
C15: -0.2
A16: 6 | B16: 2 | C16: +0,1 | D16: 0.25 | E16: PALMER | F16: 3/4 | G16: 2.02 | H16: 1.97
C17: -0,1
A18: 7 | B18: 2 | C18: +0,1 | D18: 0.25 | E18: PALMER | F18: 3/4 | G18: 2.01 | H18: 2.05 | I18: 2.004 | J18: 2.02 | K18: 2.004
C19: -0,1
A20: 8 | B20: 13 | C20: +0,1 | D20: 0.25 | E20: PAC | F20: 5 | G20: 13 | H20: 14 | I20: 13 | J20: 13.02 | K20: 13.09 | L20: 13.02
C21: -0,1
A22: 9 | B22: 30 | C22: +0,2 | D22: 0.25 | E22: PAC | F22: 1 | G22: 30 | H22: 30.1 | I22: 30.9 | J22: 30.19
C23: -0,2
A24: 10 | B24: 2x Ø2,46 | C24: +0,05 | D24: 1 | E24: PIGES | F24: 10
C25: -0,03
A26: 11 | B26: Ø6,55 | C26: +0,05 | D26: 1ére pièce | E26: 3TOUCHES | F26: 12
C27: -0,05
A28: 12 | B28: Ø3,2 | C28: +0,1 | D28: 0.25 | E28: PIGES | F28: 8
C29: -0,1
A30: 13 | B30: Ø8 | C30: +0,1 | D30: 0.25 | E30: PIGES | F30: 7
C31: -0,1
G32: Tête de tableau | I32: ◄ | J32: ◄ | K32: ◄ | L32: ◄ | M32: ◄ | N32: ◄ | O32: ◄ | P32: ◄ | Q32: ◄ | R32: ◄ | S32: ◄ | T32: █ | U32: ► | V32: ► | W32: ► | X32: ► | Y32: ► | Z32: ► | AA32: ► | AB32: ► | AC32: ► | AD32: ► | AE32: ► | AF32: Queue de tableau
N33: ↓↓ Pour faire défiler, utiliser la barre ci-dessous ↓↓ Pour faire défiler, utiliser la barre ci-dessous ↓↓ Pour faire défiler, utiliser la barre ci-dessous ↓↓ Pour faire défiler, utiliser la barre ci-dessous ↓↓ Pour faire défiler, utiliser la barre ci-dessous ↓↓
B36: Une fois les valeurs entrées, merci de cliquer sur "Afficher les cartes de contrôle" pour visualiser l'évolution des relevés. Pour quitter, cliquer sur "Sauvegarder et quitter".

Sheet Graphiques

Sheet Graph

Sheet Valeurs
C2: Repère 1 | G2: Valeurs relevées | J2: Repère 2 | N2: Valeurs relevées | R2: Repère 3 | V2: Valeurs relevées | Y2: N° Affaire | Z2: Date | AA2: Opérateur | AB2: N° pièce | AC2: Cote 1 | AD2: Cote 2 | AE2: Cote 3 | AF2: Cote 4 | AG2: Cote 5 | AH2: Cote 6 | AI2: Cote 7 | AJ2: Cote 8 | AK2: Cote 9 | AL2: Cote 10 | AM2: Cote 11 | AN2: Cote 12 | AO2: Cote 13
B3: - | C3: IT- | D3: Cote nominale | E3: IT+ | F3: + | I3: - | J3: IT- | K3: Cote nominale | L3: IT+ | M3: + | Q3: - | R3: IT- | S3: Cote nominale | T3: IT+ | U3: + | Y3: =Fiche_releve!$E$3&"" ->  | Z3: =Fiche_releve!$K$3 -> 00:00:00 | AA3: =Fiche_releve!$H$3&"" ->  | AB3: =Fiche_releve!G5&"" -> 1 | AC3: =IF(Fiche_releve!G6=0,#N/A,Fiche_releve!G6) ->  | AD3: =IF(Fiche_releve!G8=0,#N/A,Fiche_releve!G8) -> 2.01 | AE3: =IF(Fiche_releve!G10=0,#N/A,Fiche_releve!G10) -> 2.01 | AF3: =IF(Fiche_releve!G12=0,#N/A,Fiche_releve!G12) -> 21.01 | AG3: =IF(Fiche_releve!G14=0,#N/A,Fiche_releve!G14) -> 25 | AH3: =IF(Fiche_releve!G16=0,#N/A,Fiche_releve!G16) -> 2.02 | AI3: =IF(Fiche_releve!G18=0,#N/A,Fiche_releve!G18) -> 2.01 | AJ3: =IF(Fiche_releve!G20=0,#N/A,Fiche_releve!G20) -> 13 | AK3: =IF(Fiche_releve!G22=0,#N/A,Fiche_releve!G22) -> 30 | AL3: =IF(Fiche_releve!G24=0,#N/A,Fiche_releve!G24) ->  | AM3: =IF(Fiche_releve!G26=0,#N/A,Fiche_releve!G26) ->  | AN3: =IF(Fiche_releve!G28=0,#N/A,Fiche_releve!G28) ->  | AO3: =IF(Fiche_releve!G30=0,#N/A,Fiche_releve!G30) -> 
B4: 2.42 | C4: 2.4 | D4: =Fiche_releve!$B$6 -> 2.5 | E4: 2.6 | F4: 2.58 | G4: =_xlfn.NUMBERVALUE(IF(ISBLANK(INDIRECT("Etape!E2")),#N/A,INDIRECT("Etape!E2"))) ->  | I4: 1.92 | J4: 1.9 | K4: =Fiche_releve!$B$8 -> 2 | L4: 2.1 | M4: 2.08 | N4: =_xlfn.NUMBERVALUE(IF(ISBLANK(INDIRECT("Etape!F2")),#N/A,INDIRECT("Etape!F2"))) -> 2.01 | Q4: 1.92 | R4: =2-0.1 -> 1.9 | S4: =Fiche_releve!$B$10 -> 2 | T4: =2+0.1 -> 2.1 | U4: 2.08 | V4: =_xlfn.NUMBERVALUE(IF(ISBLANK(INDIRECT("Etape!G2")),#N/A,INDIRECT("Etape!G2"))) -> 2.01 | Y4: =Fiche_releve!$E$3&"" ->  | Z4: =Fiche_releve!$K$3 -> 00:00:00 | AA4: =Fiche_releve!$H$3&"" ->  | AB4: =Fiche_releve!H5&"" -> 5 | AC4: =IF(Fiche_releve!H6=0,#N/A,Fiche_releve!H6) -> 2.52 | AD4: =IF(Fiche_releve!H8=0,#N/A,Fiche_releve!H8) -> 2.02 | AE4: =IF(Fiche_releve!H10=0,#N/A,Fiche_releve!H10) ->  | AF4: =IF(Fiche_releve!H12=0,#N/A,Fiche_releve!H12) -> 21.02 | AG4: =IF(Fiche_releve!H14=0,#N/A,Fiche_releve!H14) ->  | AH4: =IF(Fiche_releve!H16=0,#N/A,Fiche_releve!H16) -> 1.97 | AI4: =IF(Fiche_releve!H18=0,#N/A,Fiche_releve!H18) -> 2.05 | AJ4: =IF(Fiche_releve!H20=0,#N/A,Fiche_releve!H20) -> 14 | AK4: =IF(Fiche_releve!H22=0,#N/A,Fiche_releve!H22) -> 30.1 | AL4: =IF(Fiche_releve!H24=0,#N/A,Fiche_releve!H24) ->  | AM4: =IF(Fiche_releve!H26=0,#N/A,Fiche_releve!H26) ->  | AN4: =IF(Fiche_releve!H28=0,#N/A,Fiche_releve!H28) ->  | AO4: =IF(Fiche_releve!H30=0,#N/A,Fiche_releve!H30) -> 
B5: 2.42 | C5: 2.4 | D5: =Fiche_releve!$B$6 -> 2.5 | E5: 2.6 | F5: 2.58 | G5: =_xlfn.NUMBERVALUE(IF(ISBLANK(INDIRECT("Etape!E3")),#N/A,INDIRECT("Etape!E3"))) -> 2.5 | I5: 1.92 | J5: 1.9 | K5: =Fiche_releve!$B$8 -> 2 | L5: 2.1 | M5: 2.08 | N5: =_xlfn.NUMBERVALUE(IF(ISBLANK(INDIRECT("Etape!F3")),#N/A,INDIRECT("Etape!F3"))) -> 2.01 | Q5: 1.92 | R5: =2-0.1 -> 1.9 | S5: =Fiche_releve!$B$10 -> 2 | T5: =2+0.1 -> 2.1 | U5: 2.08 | V5: =_xlfn.NUMBERVALUE(IF(ISBLANK(INDIRECT("Etape!G3")),#N/A,INDIRECT("Etape!G3"))) -> 2.01 | Y5: =Fiche_releve!$E$3&"" ->  | Z5: =Fiche_releve!$K$3 -> 00:00:00 | AA5: =Fiche_releve!$H$3&"" ->  | AB5: =Fiche_releve!I5&"" -> 9 | AC5: =IF(Fiche_releve!I6=0,#N/A,Fiche_releve!I6) -> 2.53 | AD5: =IF(Fiche_releve!I8=0,#N/A,Fiche_releve!I8) -> 2.03 | AE5: =IF(Fiche_releve!I10=0,#N/A,Fiche_releve!I10) ->  | AF5: =IF(Fiche_releve!I12=0,#N/A,Fiche_releve!I12) -> 21.03 | AG5: =IF(Fiche_releve!I14=0,#N/A,Fiche_releve!I14) ->  | AH5: =IF(Fiche_releve!I16=0,#N/A,Fiche_releve!I16) ->  | AI5: =IF(Fiche_releve!I18=0,#N/A,Fiche_releve!I18) -> 2.004 | AJ5: =IF(Fiche_releve!I20=0,#N/A,Fiche_releve!I20) -> 13 | AK5: =IF(Fiche_releve!I22=0,#N/A,Fiche_releve!I22) -> 30.9 | AL5: =IF(Fiche_releve!I24=0,#N/A,Fiche_releve!I24) ->  | AM5: =IF(Fiche_releve!I26=0,#N/A,Fiche_releve!I26) ->  | AN5: =IF(Fiche_releve!I28=0,#N/A,Fiche_releve!I28) ->  | AO5: =IF(Fiche_releve!I30=0,#N/A,Fiche_releve!I30) -> 
B6: 2.42 | C6: 2.4 | D6: =Fiche_releve!$B$6 -> 2.5 | E6: 2.6 | F6: 2.58 | G6: =_xlfn.NUMBERVALUE(IF(ISBLANK(INDIRECT("Etape!E4")),#N/A,INDIRECT("Etape!E4"))) -> 2.5 | I6: 1.92 | J6: 1.9 | K6: =Fiche_releve!$B$8 -> 2 | L6: 2.1 | M6: 2.08 | N6: =_xlfn.NUMBERVALUE(IF(ISBLANK(INDIRECT("Etape!F4")),#N/A,INDIRECT("Etape!F4"))) -> 2.01 | Q6: 1.92 | R6: 1.9 | S6: =Fiche_releve!$B$10 -> 2 | T6: 2.1 | U6: 2.08 | V6: =_xlfn.NUMBERVALUE(IF(ISBLANK(INDIRECT("Etape!G4")),#N/A,INDIRECT("Etape!G4"))) -> 2.01 | Y6: =Fiche_releve!$E$3&"" ->  | Z6: =Fiche_releve!$K$3 -> 00:00:00 | AA6: =Fiche_releve!$H$3&"" ->  | AB6: =Fiche_releve!J5&"" -> 13 | AC6: =IF(Fiche_releve!J6=0,#N/A,Fiche_releve!J6) -> 2.57 | AD6: =IF(Fiche_releve!J8=0,#N/A,Fiche_releve!J8) -> 2 | AE6: =IF(Fiche_releve!J10=0,#N/A,Fiche_releve!J10) ->  | AF6: =IF(Fiche_releve!J12=0,#N/A,Fiche_releve!J12) -> 21.06 | AG6: =IF(Fiche_releve!J14=0,#N/A,Fiche_releve!J14) ->  | AH6: =IF(Fiche_releve!J16=0,#N/A,Fiche_releve!J16) ->  | AI6: =IF(Fiche_releve!J18=0,#N/A,Fiche_releve!J18) -> 2.02 | AJ6: =IF(Fiche_releve!J20=0,#N/A,Fiche_releve!J20) -> 13.02 | AK6: =IF(Fiche_releve!J22=0,#N/A,Fiche_releve!J22) -> 30.19 | AL6: =IF(Fiche_releve!J24=0,#N/A,Fiche_releve!J24) ->  | AM6: =IF(Fiche_releve!J26=0,#N/A,Fiche_releve!J26) ->  | AN6: =IF(Fiche_releve!J28=0,#N/A,Fiche_releve!J28) ->  | AO6: =IF(Fiche_releve!J30=0,#N/A,Fiche_releve!J30) -> 
B7: 2.42 | C7: 2.4 | D7: =Fiche_releve!$B$6 -> 2.5 | E7: 2.6 | F7: 2.58 | G7: =_xlfn.NUMBERVALUE(IF(ISBLANK(INDIRECT("Etape!E5")),#N/A,INDIRECT("Etape!E5"))) ->  | I7: 1.92 | J7: 1.9 | K7: =Fiche_releve!$B$8 -> 2 | L7: 2.1 | M7: 2.08 | N7: =_xlfn.NUMBERVALUE(IF(ISBLANK(INDIRECT("Etape!F5")),#N/A,INDIRECT("Etape!F5"))) -> 2.01 | Q7: 1.92 | R7: 1.9 | S7: =Fiche_releve!$B$10 -> 2 | T7: 2.1 | U7: 2.08 | V7: =_xlfn.NUMBERVALUE(IF(ISBLANK(INDIRECT("Etape!G5")),#N/A,INDIRECT("Etape!G5"))) ->  | Y7: =Fiche_releve!$E$3&"" ->  | Z7: =Fiche_releve!$K$3 -> 00:00:00 | AA7: =Fiche_releve!$H$3&"" ->  | AB7: =Fiche_releve!K5&"" -> 17 | AC7: =IF(Fiche_releve!K6=0,#N/A,Fiche_releve!K6) ->  | AD7: =IF(Fiche_releve!K8=0,#N/A,Fiche_releve!K8) -> 1.98 | AE7: =IF(Fiche_releve!K10=0,#N/A,Fiche_releve!K10) ->  | AF7: =IF(Fiche_releve!K12=0,#N/A,Fiche_releve!K12) -> 21.07 | AG7: =IF(Fiche_releve!K14=0,#N/A,Fiche_releve!K14) ->  | AH7: =IF(Fiche_releve!K16=0,#N/A,Fiche_releve!K16) ->  | AI7: =IF(Fiche_releve!K18=0,#N/A,Fiche_releve!K18) -> 2.004 | AJ7: =IF(Fiche_releve!K20=0,#N/A,Fiche_releve!K20) -> 13.09 | AK7: =IF(Fiche_releve!K22=0,#N/A,Fiche_releve!K22) ->  | AL7: =IF(Fiche_releve!K24=0,#N/A,Fiche_releve!K24) ->  | AM7: =IF(Fiche_releve!K26=0,#N/A,Fiche_releve!K26) ->  | AN7: =IF(Fiche_releve!K28=0,#N/A,Fiche_releve!K28) ->  | AO7: =IF(Fiche_releve!K30=0,#N/A,Fiche_releve!K30) -> 
B8: 2.42 | C8: 2.4 | D8: =Fiche_releve!$B$6 -> 2.5 | E8: 2.6 | F8: 2.58 | G8: =_xlfn.NUMBERVALUE(IF(ISBLANK(INDIRECT("Etape!E6")),#N/A,INDIRECT("Etape!E6"))) -> 2.52 | I8: 1.92 | J8: 1.9 | K8: =Fiche_releve!$B$8 -> 2 | L8: 2.1 | M8: 2.08 | N8: =_xlfn.NUMBERVALUE(IF(ISBLANK(INDIRECT("Etape!F6")),#N/A,INDIRECT("Etape!F6"))) -> 2.02 | Q8: 1.92 | R8: 1.9 | S8: =Fiche_releve!$B$10 -> 2 | T8: 2.1 | U8: 2.08 | V8: =_xlfn.NUMBERVALUE(IF(ISBLANK(INDIRECT("Etape!G6")),#N/A,INDIRECT("Etape!G6"))) ->  | Y8: =Fiche_releve!$E$3&"" ->  | Z8: =Fiche_releve!$K$3 -> 00:00:00 | AA8: =Fiche_releve!$H$3&"" ->  | AB8: =Fiche_releve!L5&"" -> 21 | AC8: =IF(Fiche_releve!L6=0,#N/A,Fiche_releve!L6) ->  | AD8: =IF(Fiche_releve!L8=0,#N/A,Fiche_releve!L8) -> 2.01 | AE8: =IF(Fiche_releve!L10=0,#N/A,Fiche_releve!L10) ->  | AF8: =IF(Fiche_releve!L12=0,#N/A,Fiche_releve!L12) -> 21.001 | AG8: =IF(Fiche_releve!L14=0,#N/A,Fiche_releve!L14) ->  | AH8: =IF(Fiche_releve!L16=0,#N/A,Fiche_releve!L16) ->  | AI8: =IF(Fiche_releve!L18=0,#N/A,Fiche_releve!L18) ->  | AJ8: =IF(Fiche_releve!L20=0,#N/A,Fiche_releve!L20) -> 13.02 | AK8: =IF(Fiche_releve!L22=0,#N/A,Fiche_releve!L22) ->  | AL8: =IF(Fiche_releve!L24=0,#N/A,Fiche_releve!L24) ->  | AM8: =IF(Fiche_releve!L26=0,#N/A,Fiche_releve!L26) ->  | AN8: =IF(Fiche_releve!L28=0,#N/A,Fiche_releve!L28) ->  | AO8: =IF(Fiche_releve!L30=0,#N/A,Fiche_releve!L30) -> 
B9: 2.42 | C9: 2.4 | D9: =Fiche_releve!$B$6 -> 2.5 | E9: 2.6 | F9: 2.58 | G9: =_xlfn.NUMBERVALUE(IF(ISBLANK(INDIRECT("Etape!E7")),#N/A,INDIRECT("Etape!E7"))) ->  | I9: 1.92 | J9: 1.9 | K9: =Fiche_releve!$B$8 -> 2 | L9: 2.1 | M9: 2.08 | N9: =_xlfn.NUMBERVALUE(IF(ISBLANK(INDIRECT("Etape!F7")),#N/A,INDIRECT("Etape!F7"))) -> 2.02 | Q9: 1.92 | R9: 1.9 | S9: =Fiche_releve!$B$10 -> 2 | T9: 2.1 | U9: 2.08 | V9: =_xlfn.NUMBERVALUE(IF(ISBLANK(INDIRECT("Etape!G7")),#N/A,INDIRECT("Etape!G7"))) ->  | Y9: =Fiche_releve!$E$3&"" ->  | Z9: =Fiche_releve!$K$3 -> 00:00:00 | AA9: =Fiche_releve!$H$3&"" ->  | AB9: =Fiche_releve!M5&"" -> 25 | AC9: =IF(Fiche_releve!M6=0,#N/A,Fiche_releve!M6) ->  | AD9: =IF(Fiche_releve!M8=0,#N/A,Fiche_releve!M8) -> 2.03 | AE9: =IF(Fiche_releve!M10=0,#N/A,Fiche_releve!M10) ->  | AF9: =IF(Fiche_releve!M12=0,#N/A,Fiche_releve!M12) ->  | AG9: =IF(Fiche_releve!M14=0,#N/A,Fiche_releve!M14) ->  | AH9: =IF(Fiche_releve!M16=0,#N/A,Fiche_releve!M16) ->  | AI9: =IF(Fiche_releve!M18=0,#N/A,Fiche_releve!M18) ->  | AJ9: =IF(Fiche_releve!M20=0,#N/A,Fiche_releve!M20) ->  | AK9: =IF(Fiche_releve!M22=0,#N/A,Fiche_releve!M22) ->  | AL9: =IF(Fiche_releve!M24=0,#N/A,Fiche_releve!M24) ->  | AM9: =IF(Fiche_releve!M26=0,#N/A,Fiche_releve!M26) ->  | AN9: =IF(Fiche_releve!M28=0,#N/A,Fiche_releve!M28) ->  | AO9: =IF(Fiche_releve!M30=0,#N/A,Fiche_releve!M30) -> 
B10: 2.42 | C10: 2.4 | D10: =Fiche_releve!$B$6 -> 2.5 | E10: 2.6 | F10: 2.58 | G10: =_xlfn.NUMBERVALUE(IF(ISBLANK(INDIRECT("Etape!E8")),#N/A,INDIRECT("Etape!E8"))) ->  | I10: 1.92 | J10: 1.9 | K10: =Fiche_releve!$B$8 -> 2 | L10: 2.1 | M10: 2.08 | N10: =_xlfn.NUMBERVALUE(IF(ISBLANK(INDIRECT("Etape!F8")),#N/A,INDIRECT("Etape!F8"))) -> 2.02 | Q10: 1.92 | R10: 1.9 | S10: =Fiche_releve!$B$10 -> 2 | T10: 2.1 | U10: 2.08 | V10: =_xlfn.NUMBERVALUE(IF(ISBLANK(INDIRECT("Etape!G8")),#N/A,INDIRECT("Etape!G8"))) ->  | Y10: =Fiche_releve!$E$3&"" ->  | Z10: =Fiche_releve!$K$3 -> 00:00:00 | AA10: =Fiche_releve!$H$3&"" ->  | AB10: =Fiche_releve!N5&"" -> 29 | AC10: =IF(Fiche_releve!N6=0,#N/A,Fiche_releve!N6) ->  | AD10: =IF(Fiche_releve!N8=0,#N/A,Fiche_releve!N8) ->  | AE10: =IF(Fiche_releve!N10=0,#N/A,Fiche_releve!N10) ->  | AF10: =IF(Fiche_releve!N12=0,#N/A,Fiche_releve!N12) ->  | AG10: =IF(Fiche_releve!N14=0,#N/A,Fiche_releve!N14) ->  | AH10: =IF(Fiche_releve!N16=0,#N/A,Fiche_releve!N16) ->  | AI10: =IF(Fiche_releve!N18=0,#N/A,Fiche_releve!N18) ->  | AJ10: =IF(Fiche_releve!N20=0,#N/A,Fiche_releve!N20) ->  | AK10: =IF(Fiche_releve!N22=0,#N/A,Fiche_releve!N22) ->  | AL10: =IF(Fiche_releve!N24=0,#N/A,Fiche_releve!N24) ->  | AM10: =IF(Fiche_releve!N26=0,#N/A,Fiche_releve!N26) ->  | AN10: =IF(Fiche_releve!N28=0,#N/A,Fiche_releve!N28) ->  | AO10: =IF(Fiche_releve!N30=0,#N/A,Fiche_releve!N30) -> 
B11: 2.42 | C11: 2.4 | D11: =Fiche_releve!$B$6 -> 2.5 | E11: 2.6 | F11: 2.58 | G11: =_xlfn.NUMBERVALUE(IF(ISBLANK(INDIRECT("Etape!E9")),#N/A,INDIRECT("Etape!E9"))) ->  | I11: 1.92 | J11: 1.9 | K11: =Fiche_releve!$B$8 -> 2 | L11: 2.1 | M11: 2.08 | N11: =_xlfn.NUMBERVALUE(IF(ISBLANK(INDIRECT("Etape!F9")),#N/A,INDIRECT("Etape!F9"))) -> 2.02 | Q11: 1.92 | R11: 1.9 | S11: =Fiche_releve!$B$10 -> 2 | T11: 2.1 | U11: 2.08 | V11: =_xlfn.NUMBERVALUE(IF(ISBLANK(INDIRECT("Etape!G9")),#N/A,INDIRECT("Etape!G9"))) ->  | Y11: =Fiche_releve!$E$3&"" ->  | Z11: =Fiche_releve!$K$3 -> 00:00:00 | AA11: =Fiche_releve!$H$3&"" ->  | AB11: =Fiche_releve!O5&"" -> 33 | AC11: =IF(Fiche_releve!O6=0,#N/A,Fiche_releve!O6) ->  | AD11: =IF(Fiche_releve!O8=0,#N/A,Fiche_releve!O8) ->  | AE11: =IF(Fiche_releve!O10=0,#N/A,Fiche_releve!O10) ->  | AF11: =IF(Fiche_releve!O12=0,#N/A,Fiche_releve!O12) ->  | AG11: =IF(Fiche_releve!O14=0,#N/A,Fiche_releve!O14) ->  | AH11: =IF(Fiche_releve!O16=0,#N/A,Fiche_releve!O16) ->  | AI11: =IF(Fiche_releve!O18=0,#N/A,Fiche_releve!O18) ->  | AJ11: =IF(Fiche_releve!O20=0,#N/A,Fiche_releve!O20) ->  | AK11: =IF(Fiche_releve!O22=0,#N/A,Fiche_releve!O22) ->  | AL11: =IF(Fiche_releve!O24=0,#N/A,Fiche_releve!O24) ->  | AM11: =IF(Fiche_releve!O26=0,#N/A,Fiche_releve!O26) ->  | AN11: =IF(Fiche_releve!O28=0,#N/A,Fiche_releve!O28) ->  | AO11: =IF(Fiche_releve!O30=0,#N/A,Fiche_releve!O30) -> 
B12: 2.42 | C12: 2.4 | D12: =Fiche_releve!$B$6 -> 2.5 | E12: 2.6 | F12: 2.58 | G12: =_xlfn.NUMBERVALUE(IF(ISBLANK(INDIRECT("Etape!E10")),#N/A,INDIRECT("Etape!E10"))) -> 2.53 | I12: 1.92 | J12: 1.9 | K12: =Fiche_releve!$B$8 -> 2 | L12: 2.1 | M12: 2.08 | N12: =_xlfn.NUMBERVALUE(IF(ISBLANK(INDIRECT("Etape!F10")),#N/A,INDIRECT("Etape!F10"))) -> 2.03 | Q12: 1.92 | R12: 1.9 | S12: =Fiche_releve!$B$10 -> 2 | T12: 2.1 | U12: 2.08 | V12: =_xlfn.NUMBERVALUE(IF(ISBLANK(INDIRECT("Etape!G10")),#N/A,INDIRECT("Etape!G10"))) ->  | Y12: =Fiche_releve!$E$3&"" ->  | Z12: =Fiche_releve!$K$3 -> 00:00:00 | AA12: =Fiche_releve!$H$3&"" ->  | AB12: =Fiche_releve!P5&"" -> 37 | AC12: =IF(Fiche_releve!P6=0,#N/A,Fiche_releve!P6) ->  | AD12: =IF(Fiche_releve!P8=0,#N/A,Fiche_releve!P8) ->  | AE12: =IF(Fiche_releve!P10=0,#N/A,Fiche_releve!P10) ->  | AF12: =IF(Fiche_releve!P12=0,#N/A,Fiche_releve!P12) ->  | AG12: =IF(Fiche_releve!P14=0,#N/A,Fiche_releve!P14) ->  | AH12: =IF(Fiche_releve!P16=0,#N/A,Fiche_releve!P16) ->  | AI12: =IF(Fiche_releve!P18=0,#N/A,Fiche_releve!P18) ->  | AJ12: =IF(Fiche_releve!P20=0,#N/A,Fiche_releve!P20) ->  | AK12: =IF(Fiche_releve!P22=0,#N/A,Fiche_releve!P22) ->  | AL12: =IF(Fiche_releve!P24=0,#N/A,Fiche_releve!P24) ->  | AM12: =IF(Fiche_releve!P26=0,#N/A,Fiche_releve!P26) ->  | AN12: =IF(Fiche_releve!P28=0,#N/A,Fiche_releve!P28) ->  | AO12: =IF(Fiche_releve!P30=0,#N/A,Fiche_releve!P30) -> 
B13: 2.42 | C13: 2.4 | D13: =Fiche_releve!$B$6 -> 2.5 | E13: 2.6 | F13: 2.58 | G13: =_xlfn.NUMBERVALUE(IF(ISBLANK(INDIRECT("Etape!E11")),#N/A,INDIRECT("Etape!E11"))) ->  | I13: 1.92 | J13: 1.9 | K13: =Fiche_releve!$B$8 -> 2 | L13: 2.1 | M13: 2.08 | N13: =_xlfn.NUMBERVALUE(IF(ISBLANK(INDIRECT("Etape!F11")),#N/A,INDIRECT("Etape!F11"))) -> 2.03 | Q13: 1.92 | R13: 1.9 | S13: =Fiche_releve!$B$10 -> 2 | T13: 2.1 | U13: 2.08 | V13: =_xlfn.NUMBERVALUE(IF(ISBLANK(INDIRECT("Etape!G11")),#N/A,INDIRECT("Etape!G11"))) ->  | Y13: =Fiche_releve!$E$3&"" ->  | Z13: =Fiche_releve!$K$3 -> 00:00:00 | AA13: =Fiche_releve!$H$3&"" ->  | AB13: =Fiche_releve!Q5&"" -> 41 | AC13: =IF(Fiche_releve!Q6=0,#N/A,Fiche_releve!Q6) ->  | AD13: =IF(Fiche_releve!Q8=0,#N/A,Fiche_releve!Q8) ->  | AE13: =IF(Fiche_releve!Q10=0,#N/A,Fiche_releve!Q10) ->  | AF13: =IF(Fiche_releve!Q12=0,#N/A,Fiche_releve!Q12) ->  | AG13: =IF(Fiche_releve!Q14=0,#N/A,Fiche_releve!Q14) ->  | AH13: =IF(Fiche_releve!Q16=0,#N/A,Fiche_releve!Q16) ->  | AI13: =IF(Fiche_releve!Q18=0,#N/A,Fiche_releve!Q18) ->  | AJ13: =IF(Fiche_releve!Q20=0,#N/A,Fiche_releve!Q20) ->  | AK13: =IF(Fiche_releve!Q22=0,#N/A,Fiche_releve!Q22) ->  | AL13: =IF(Fiche_releve!Q24=0,#N/A,Fiche_releve!Q24) ->  | AM13: =IF(Fiche_releve!Q26=0,#N/A,Fiche_releve!Q26) ->  | AN13: =IF(Fiche_releve!Q28=0,#N/A,Fiche_releve!Q28) ->  | AO13: =IF(Fiche_releve!Q30=0,#N/A,Fiche_releve!Q30) -> 
B14: 2.42 | C14: 2.4 | D14: =Fiche_releve!$B$6 -> 2.5 | E14: 2.6 | F14: 2.58 | G14: =_xlfn.NUMBERVALUE(IF(ISBLANK(INDIRECT("Etape!E12")),#N/A,INDIRECT("Etape!E12"))) ->  | I14: 1.92 | J14: 1.9 | K14: =Fiche_releve!$B$8 -> 2 | L14: 2.1 | M14: 2.08 | N14: =_xlfn.NUMBERVALUE(IF(ISBLANK(INDIRECT("Etape!F12")),#N/A,INDIRECT("Etape!F12"))) -> 2.03 | Q14: 1.92 | R14: 1.9 | S14: =Fiche_releve!$B$10 -> 2 | T14: 2.1 | U14: 2.08 | V14: =_xlfn.NUMBERVALUE(IF(ISBLANK(INDIRECT("Etape!G12")),#N/A,INDIRECT("Etape!G12"))) ->  | Y14: =Fiche_releve!$E$3&"" ->  | Z14: =Fiche_releve!$K$3 -> 00:00:00 | AA14: =Fiche_releve!$H$3&"" ->  | AB14: =Fiche_releve!R5&"" -> 45 | AC14: =IF(Fiche_releve!R6=0,#N/A,Fiche_releve!R6) ->  | AD14: =IF(Fiche_releve!R8=0,#N/A,Fiche_releve!R8) ->  | AE14: =IF(Fiche_releve!R10=0,#N/A,Fiche_releve!R10) ->  | AF14: =IF(Fiche_releve!R12=0,#N/A,Fiche_releve!R12) ->  | AG14: =IF(Fiche_releve!R14=0,#N/A,Fiche_releve!R14) ->  | AH14: =IF(Fiche_releve!R16=0,#N/A,Fiche_releve!R16) ->  | AI14: =IF(Fiche_releve!R18=0,#N/A,Fiche_releve!R18) ->  | AJ14: =IF(Fiche_releve!R20=0,#N/A,Fiche_releve!R20) ->  | AK14: =IF(Fiche_releve!R22=0,#N/A,Fiche_releve!R22) ->  | AL14: =IF(Fiche_releve!R24=0,#N/A,Fiche_releve!R24) ->  | AM14: =IF(Fiche_releve!R26=0,#N/A,Fiche_releve!R26) ->  | AN14: =IF(Fiche_releve!R28=0,#N/A,Fiche_releve!R28) ->  | AO14: =IF(Fiche_releve!R30=0,#N/A,Fiche_releve!R30) -> 
B15: 2.42 | C15: 2.4 | D15: =Fiche_releve!$B$6 -> 2.5 | E15: 2.6 | F15: 2.58 | G15: =_xlfn.NUMBERVALUE(IF(ISBLANK(INDIRECT("Etape!E13")),#N/A,INDIRECT("Etape!E13"))) -> 2.57 | I15: 1.92 | J15: 1.9 | K15: =Fiche_releve!$B$8 -> 2 | L15: 2.1 | M15: 2.08 | N15: =_xlfn.NUMBERVALUE(IF(ISBLANK(INDIRECT("Etape!F13")),#N/A,INDIRECT("Etape!F13"))) -> 2 | Q15: 1.92 | R15: 1.9 | S15: =Fiche_releve!$B$10 -> 2 | T15: 2.1 | U15: 2.08 | V15: =_xlfn.NUMBERVALUE(IF(ISBLANK(INDIRECT("Etape!G13")),#N/A,INDIRECT("Etape!G13"))) ->  | Y15: =Fiche_releve!$E$3&"" ->  | Z15: =Fiche_releve!$K$3 -> 00:00:00 | AA15: =Fiche_releve!$H$3&"" ->  | AB15: =Fiche_releve!S5&"" -> 49 | AC15: =IF(Fiche_releve!S6=0,#N/A,Fiche_releve!S6) ->  | AD15: =IF(Fiche_releve!S8=0,#N/A,Fiche_releve!S8) ->  | AE15: =IF(Fiche_releve!S10=0,#N/A,Fiche_releve!S10) ->  | AF15: =IF(Fiche_releve!S12=0,#N/A,Fiche_releve!S12) ->  | AG15: =IF(Fiche_releve!S14=0,#N/A,Fiche_releve!S14) ->  | AH15: =IF(Fiche_releve!S16=0,#N/A,Fiche_releve!S16) ->  | AI15: =IF(Fiche_releve!S18=0,#N/A,Fiche_releve!S18) ->  | AJ15: =IF(Fiche_releve!S20=0,#N/A,Fiche_releve!S20) ->  | AK15: =IF(Fiche_releve!S22=0,#N/A,Fiche_releve!S22) ->  | AL15: =IF(Fiche_releve!S24=0,#N/A,Fiche_releve!S24) ->  | AM15: =IF(Fiche_releve!S26=0,#N/A,Fiche_releve!S26) ->  | AN15: =IF(Fiche_releve!S28=0,#N/A,Fiche_releve!S28) ->  | AO15: =IF(Fiche_releve!S30=0,#N/A,Fiche_releve!S30) -> 
B16: 2.42 | C16: 2.4 | D16: =Fiche_releve!$B$6 -> 2.5 | E16: 2.6 | F16: 2.58 | G16: =_xlfn.NUMBERVALUE(IF(ISBLANK(INDIRECT("Etape!E14")),#N/A,INDIRECT("Etape!E14"))) ->  | I16: 1.92 | J16: 1.9 | K16: =Fiche_releve!$B$8 -> 2 | L16: 2.1 | M16: 2.08 | N16: =_xlfn.NUMBERVALUE(IF(ISBLANK(INDIRECT("Etape!F14")),#N/A,INDIRECT("Etape!F14"))) -> 2 | Q16: 1.92 | R16: 1.9 | S16: =Fiche_releve!$B$10 -> 2 | T16: 2.1 | U16: 2.08 | V16: =_xlfn.NUMBERVALUE(IF(ISBLANK(INDIRECT("Etape!G14")),#N/A,INDIRECT("Etape!G14"))) ->  | Y16: =Fiche_releve!$E$3&"" ->  | Z16: =Fiche_releve!$K$3 -> 00:00:00 | AA16: =Fiche_releve!$H$3&"" ->  | AB16: =Fiche_releve!T5&"" -> 53 | AC16: =IF(Fiche_releve!T6=0,#N/A,Fiche_releve!T6) ->  | AD16: =IF(Fiche_releve!T8=0,#N/A,Fiche_releve!T8) ->  | AE16: =IF(Fiche_releve!T10=0,#N/A,Fiche_releve!T10) ->  | AF16: =IF(Fiche_releve!T12=0,#N/A,Fiche_releve!T12) ->  | AG16: =IF(Fiche_releve!T14=0,#N/A,Fiche_releve!T14) ->  | AH16: =IF(Fiche_releve!T16=0,#N/A,Fiche_releve!T16) ->  | AI16: =IF(Fiche_releve!T18=0,#N/A,Fiche_releve!T18) ->  | AJ16: =IF(Fiche_releve!T20=0,#N/A,Fiche_releve!T20) ->  | AK16: =IF(Fiche_releve!T22=0,#N/A,Fiche_releve!T22) ->  | AL16: =IF(Fiche_releve!T24=0,#N/A,Fiche_releve!T24) ->  | AM16: =IF(Fiche_releve!T26=0,#N/A,Fiche_releve!T26) ->  | AN16: =IF(Fiche_releve!T28=0,#N/A,Fiche_releve!T28) ->  | AO16: =IF(Fiche_releve!T30=0,#N/A,Fiche_releve!T30) -> 
B17: 2.42 | C17: 2.4 | D17: =Fiche_releve!$B$6 -> 2.5 | E17: 2.6 | F17: 2.58 | G17: =_xlfn.NUMBERVALUE(IF(ISBLANK(INDIRECT("Etape!E15")),#N/A,INDIRECT("Etape!E15"))) ->  | I17: 1.92 | J17: 1.9 | K17: =Fiche_releve!$B$8 -> 2 | L17: 2.1 | M17: 2.08 | N17: =_xlfn.NUMBERVALUE(IF(ISBLANK(INDIRECT("Etape!F15")),#N/A,INDIRECT("Etape!F15"))) -> 1.98 | Q17: 1.92 | R17: 1.9 | S17: =Fiche_releve!$B$10 -> 2 | T17: 2.1 | U17: 2.08 | V17: =_xlfn.NUMBERVALUE(IF(ISBLANK(INDIRECT("Etape!G15")),#N/A,INDIRECT("Etape!G15"))) ->  | Y17: =Fiche_releve!$E$3&"" ->  | Z17: =Fiche_releve!$K$3 -> 00:00:00 | AA17: =Fiche_releve!$H$3&"" ->  | AB17: =Fiche_releve!U5&"" -> 57 | AC17: =IF(Fiche_releve!U6=0,#N/A,Fiche_releve!U6) ->  | AD17: =IF(Fiche_releve!U8=0,#N/A,Fiche_releve!U8) ->  | AE17: =IF(Fiche_releve!U10=0,#N/A,Fiche_releve!U10) ->  | AF17: =IF(Fiche_releve!U12=0,#N/A,Fiche_releve!U12) ->  | AG17: =IF(Fiche_releve!U14=0,#N/A,Fiche_releve!U14) ->  | AH17: =IF(Fiche_releve!U16=0,#N/A,Fiche_releve!U16) ->  | AI17: =IF(Fiche_releve!U18=0,#N/A,Fiche_releve!U18) ->  | AJ17: =IF(Fiche_releve!U20=0,#N/A,Fiche_releve!U20) ->  | AK17: =IF(Fiche_releve!U22=0,#N/A,Fiche_releve!U22) ->  | AL17: =IF(Fiche_releve!U24=0,#N/A,Fiche_releve!U24) ->  | AM17: =IF(Fiche_releve!U26=0,#N/A,Fiche_releve!U26) ->  | AN17: =IF(Fiche_releve!U28=0,#N/A,Fiche_releve!U28) ->  | AO17: =IF(Fiche_releve!U30=0,#N/A,Fiche_releve!U30) -> 
B18: 2.42 | C18: 2.4 | D18: =Fiche_releve!$B$6 -> 2.5 | E18: 2.6 | F18: 2.58 | G18: =_xlfn.NUMBERVALUE(IF(ISBLANK(INDIRECT("Etape!E16")),#N/A,INDIRECT("Etape!E16"))) ->  | I18: 1.92 | J18: 1.9 | K18: =Fiche_releve!$B$8 -> 2 | L18: 2.1 | M18: 2.08 | N18: =_xlfn.NUMBERVALUE(IF(ISBLANK(INDIRECT("Etape!F16")),#N/A,INDIRECT("Etape!F16"))) -> 1.98 | Q18: 1.92 | R18: 1.9 | S18: =Fiche_releve!$B$10 -> 2 | T18: 2.1 | U18: 2.08 | V18: =_xlfn.NUMBERVALUE(IF(ISBLANK(INDIRECT("Etape!G16")),#N/A,INDIRECT("Etape!G16"))) ->  | Y18: =Fiche_releve!$E$3&"" ->  | Z18: =Fiche_releve!$K$3 -> 00:00:00 | AA18: =Fiche_releve!$H$3&"" ->  | AB18: =Fiche_releve!V5&"" -> 61 | AC18: =IF(Fiche_releve!V6=0,#N/A,Fiche_releve!V6) ->  | AD18: =IF(Fiche_releve!V8=0,#N/A,Fiche_releve!V8) ->  | AE18: =IF(Fiche_releve!V10=0,#N/A,Fiche_releve!V10) ->  | AF18: =IF(Fiche_releve!V12=0,#N/A,Fiche_releve!V12) ->  | AG18: =IF(Fiche_releve!V14=0,#N/A,Fiche_releve!V14) ->  | AH18: =IF(Fiche_releve!V16=0,#N/A,Fiche_releve!V16) ->  | AI18: =IF(Fiche_releve!V18=0,#N/A,Fiche_releve!V18) ->  | AJ18: =IF(Fiche_releve!V20=0,#N/A,Fiche_releve!V20) ->  | AK18: =IF(Fiche_releve!V22=0,#N/A,Fiche_releve!V22) ->  | AL18: =IF(Fiche_releve!V24=0,#N/A,Fiche_releve!V24) ->  | AM18: =IF(Fiche_releve!V26=0,#N/A,Fiche_releve!V26) ->  | AN18: =IF(Fiche_releve!V28=0,#N/A,Fiche_releve!V28) ->  | AO18: =IF(Fiche_releve!V30=0,#N/A,Fiche_releve!V30) -> 
B19: 2.42 | C19: 2.4 | D19: =Fiche_releve!$B$6 -> 2.5 | E19: 2.6 | F19: 2.58 | G19: =_xlfn.NUMBERVALUE(IF(ISBLANK(INDIRECT("Etape!E17")),#N/A,INDIRECT("Etape!E17"))) ->  | I19: 1.92 | J19: 1.9 | K19: =Fiche_releve!$B$8 -> 2 | L19: 2.1 | M19: 2.08 | N19: =_xlfn.NUMBERVALUE(IF(ISBLANK(INDIRECT("Etape!F17")),#N/A,INDIRECT("Etape!F17"))) -> 2.01 | Q19: 1.92 | R19: 1.9 | S19: =Fiche_releve!$B$10 -> 2 | T19: 2.1 | U19: 2.08 | V19: =_xlfn.NUMBERVALUE(IF(ISBLANK(INDIRECT("Etape!G17")),#N/A,INDIRECT("Etape!G17"))) ->  | Y19: =Fiche_releve!$E$3&"" ->  | Z19: =Fiche_releve!$K$3 -> 00:00:00 | AA19: =Fiche_releve!$H$3&"" ->  | AB19: =Fiche_releve!W5&"" -> 65 | AC19: =IF(Fiche_releve!W6=0,#N/A,Fiche_releve!W6) ->  | AD19: =IF(Fiche_releve!W8=0,#N/A,Fiche_releve!W8) ->  | AE19: =IF(Fiche_releve!W10=0,#N/A,Fiche_releve!W10) ->  | AF19: =IF(Fiche_releve!W12=0,#N/A,Fiche_releve!W12) ->  | AG19: =IF(Fiche_releve!W14=0,#N/A,Fiche_releve!W14) ->  | AH19: =IF(Fiche_releve!W16=0,#N/A,Fiche_releve!W16) ->  | AI19: =IF(Fiche_releve!W18=0,#N/A,Fiche_releve!W18) ->  | AJ19: =IF(Fiche_releve!W20=0,#N/A,Fiche_releve!W20) ->  | AK19: =IF(Fiche_releve!W22=0,#N/A,Fiche_releve!W22) ->  | AL19: =IF(Fiche_releve!W24=0,#N/A,Fiche_releve!W24) ->  | AM19: =IF(Fiche_releve!W26=0,#N/A,Fiche_releve!W26) ->  | AN19: =IF(Fiche_releve!W28=0,#N/A,Fiche_releve!W28) ->  | AO19: =IF(Fiche_releve!W30=0,#N/A,Fiche_releve!W30) -> 
B20: 2.42 | C20: 2.4 | D20: =Fiche_releve!$B$6 -> 2.5 | E20: 2.6 | F20: 2.58 | G20: =_xlfn.NUMBERVALUE(IF(ISBLANK(INDIRECT("Etape!E18")),#N/A,INDIRECT("Etape!E18"))) ->  | I20: 1.92 | J20: 1.9 | K20: =Fiche_releve!$B$8 -> 2 | L20: 2.1 | M20: 2.08 | N20: =_xlfn.NUMBERVALUE(IF(ISBLANK(INDIRECT("Etape!F18")),#N/A,INDIRECT("Etape!F18"))) -> 2.03 | Q20: 1.92 | R20: 1.9 | S20: =Fiche_releve!$B$10 -> 2 | T20: 2.1 | U20: 2.08 | V20: =_xlfn.NUMBERVALUE(IF(ISBLANK(INDIRECT("Etape!G18")),#N/A,INDIRECT("Etape!G18"))) ->  | Y20: =Fiche_releve!$E$3&"" ->  | Z20: =Fiche_releve!$K$3 -> 00:00:00 | AA20: =Fiche_releve!$H$3&"" ->  | AB20: =Fiche_releve!X5&"" -> 69 | AC20: =IF(Fiche_releve!X6=0,#N/A,Fiche_releve!X6) ->  | AD20: =IF(Fiche_releve!X8=0,#N/A,Fiche_releve!X8) ->  | AE20: =IF(Fiche_releve!X10=0,#N/A,Fiche_releve!X10) ->  | AF20: =IF(Fiche_releve!X12=0,#N/A,Fiche_releve!X12) ->  | AG20: =IF(Fiche_releve!X14=0,#N/A,Fiche_releve!X14) ->  | AH20: =IF(Fiche_releve!X16=0,#N/A,Fiche_releve!X16) ->  | AI20: =IF(Fiche_releve!X18=0,#N/A,Fiche_releve!X18) ->  | AJ20: =IF(Fiche_releve!X20=0,#N/A,Fiche_releve!X20) ->  | AK20: =IF(Fiche_releve!X22=0,#N/A,Fiche_releve!X22) ->  | AL20: =IF(Fiche_releve!X24=0,#N/A,Fiche_releve!X24) ->  | AM20: =IF(Fiche_releve!X26=0,#N/A,Fiche_releve!X26) ->  | AN20: =IF(Fiche_releve!X28=0,#N/A,Fiche_releve!X28) ->  | AO20: =IF(Fiche_releve!X30=0,#N/A,Fiche_releve!X30) -> 
B21: 2.42 | C21: 2.4 | D21: =Fiche_releve!$B$6 -> 2.5 | E21: 2.6 | F21: 2.58 | G21: =_xlfn.NUMBERVALUE(IF(ISBLANK(INDIRECT("Etape!E19")),#N/A,INDIRECT("Etape!E19"))) ->  | I21: 1.92 | J21: 1.9 | K21: =Fiche_releve!$B$8 -> 2 | L21: 2.1 | M21: 2.08 | N21: =_xlfn.NUMBERVALUE(IF(ISBLANK(INDIRECT("Etape!F19")),#N/A,INDIRECT("Etape!F19"))) ->  | Q21: 1.92 | R21: 1.9 | S21: =Fiche_releve!$B$10 -> 2 | T21: 2.1 | U21: 2.08 | V21: =_xlfn.NUMBERVALUE(IF(ISBLANK(INDIRECT("Etape!G19")),#N/A,INDIRECT("Etape!G19"))) ->  | Y21: =Fiche_releve!$E$3&"" ->  | Z21: =Fiche_releve!$K$3 -> 00:00:00 | AA21: =Fiche_releve!$H$3&"" ->  | AB21: =Fiche_releve!Y5&"" -> 73 | AC21: =IF(Fiche_releve!Y6=0,#N/A,Fiche_releve!Y6) ->  | AD21: =IF(Fiche_releve!Y8=0,#N/A,Fiche_releve!Y8) ->  | AE21: =IF(Fiche_releve!Y10=0,#N/A,Fiche_releve!Y10) ->  | AF21: =IF(Fiche_releve!Y12=0,#N/A,Fiche_releve!Y12) ->  | AG21: =IF(Fiche_releve!Y14=0,#N/A,Fiche_releve!Y14) ->  | AH21: =IF(Fiche_releve!Y16=0,#N/A,Fiche_releve!Y16) ->  | AI21: =IF(Fiche_releve!Y18=0,#N/A,Fiche_releve!Y18) ->  | AJ21: =IF(Fiche_releve!Y20=0,#N/A,Fiche_releve!Y20) ->  | AK21: =IF(Fiche_releve!Y22=0,#N/A,Fiche_releve!Y22) ->  | AL21: =IF(Fiche_releve!Y24=0,#N/A,Fiche_releve!Y24) ->  | AM21: =IF(Fiche_releve!Y26=0,#N/A,Fiche_releve!Y26) ->  | AN21: =IF(Fiche_releve!Y28=0,#N/A,Fiche_releve!Y28) ->  | AO21: =IF(Fiche_releve!Y30=0,#N/A,Fiche_releve!Y30) -> 
B22: 2.42 | C22: 2.4 | D22: =Fiche_releve!$B$6 -> 2.5 | E22: 2.6 | F22: 2.58 | G22: =_xlfn.NUMBERVALUE(IF(ISBLANK(INDIRECT("Etape!E20")),#N/A,INDIRECT("Etape!E20"))) ->  | I22: 1.92 | J22: 1.9 | K22: =Fiche_releve!$B$8 -> 2 | L22: 2.1 | M22: 2.08 | N22: =_xlfn.NUMBERVALUE(IF(ISBLANK(INDIRECT("Etape!F20")),#N/A,INDIRECT("Etape!F20"))) ->  | Q22: 1.92 | R22: 1.9 | S22: =Fiche_releve!$B$10 -> 2 | T22: 2.1 | U22: 2.08 | V22: =_xlfn.NUMBERVALUE(IF(ISBLANK(INDIRECT("Etape!G20")),#N/A,INDIRECT("Etape!G20"))) ->  | Y22: =Fiche_releve!$E$3&"" ->  | Z22: =Fiche_releve!$K$3 -> 00:00:00 | AA22: =Fiche_releve!$H$3&"" ->  | AB22: =Fiche_releve!Z5&"" -> 77 | AC22: =IF(Fiche_releve!Z6=0,#N/A,Fiche_releve!Z6) ->  | AD22: =IF(Fiche_releve!Z8=0,#N/A,Fiche_releve!Z8) ->  | AE22: =IF(Fiche_releve!Z10=0,#N/A,Fiche_releve!Z10) ->  | AF22: =IF(Fiche_releve!Z12=0,#N/A,Fiche_releve!Z12) ->  | AG22: =IF(Fiche_releve!Z14=0,#N/A,Fiche_releve!Z14) ->  | AH22: =IF(Fiche_releve!Z16=0,#N/A,Fiche_releve!Z16) ->  | AI22: =IF(Fiche_releve!Z18=0,#N/A,Fiche_releve!Z18) ->  | AJ22: =IF(Fiche_releve!Z20=0,#N/A,Fiche_releve!Z20) ->  | AK22: =IF(Fiche_releve!Z22=0,#N/A,Fiche_releve!Z22) ->  | AL22: =IF(Fiche_releve!Z24=0,#N/A,Fiche_releve!Z24) ->  | AM22: =IF(Fiche_releve!Z26=0,#N/A,Fiche_releve!Z26) ->  | AN22: =IF(Fiche_releve!Z28=0,#N/A,Fiche_releve!Z28) ->  | AO22: =IF(Fiche_releve!Z30=0,#N/A,Fiche_releve!Z30) -> 
B23: 2.42 | C23: 2.4 | D23: =Fiche_releve!$B$6 -> 2.5 | E23: 2.6 | F23: 2.58 | G23: =_xlfn.NUMBERVALUE(IF(ISBLANK(INDIRECT("Etape!E21")),#N/A,INDIRECT("Etape!E21"))) ->  | I23: 1.92 | J23: 1.9 | K23: =Fiche_releve!$B$8 -> 2 | L23: 2.1 | M23: 2.08 | N23: =_xlfn.NUMBERVALUE(IF(ISBLANK(INDIRECT("Etape!F21")),#N/A,INDIRECT("Etape!F21"))) ->  | Q23: 1.92 | R23: 1.9 | S23: =Fiche_releve!$B$10 -> 2 | T23: 2.1 | U23: 2.08 | V23: =_xlfn.NUMBERVALUE(IF(ISBLANK(INDIRECT("Etape!G21")),#N/A,INDIRECT("Etape!G21"))) ->  | Y23: =Fiche_releve!$E$3&"" ->  | Z23: =Fiche_releve!$K$3 -> 00:00:00 | AA23: =Fiche_releve!$H$3&"" ->  | AB23: =Fiche_releve!AA5&"" -> 81 | AC23: =IF(Fiche_releve!AA6=0,#N/A,Fiche_releve!AA6) ->  | AD23: =IF(Fiche_releve!AA8=0,#N/A,Fiche_releve!AA8) ->  | AE23: =IF(Fiche_releve!AA10=0,#N/A,Fiche_releve!AA10) ->  | AF23: =IF(Fiche_releve!AA12=0,#N/A,Fiche_releve!AA12) ->  | AG23: =IF(Fiche_releve!AA14=0,#N/A,Fiche_releve!AA14) ->  | AH23: =IF(Fiche_releve!AA16=0,#N/A,Fiche_releve!AA16) ->  | AI23: =IF(Fiche_releve!AA18=0,#N/A,Fiche_releve!AA18) ->  | AJ23: =IF(Fiche_releve!AA20=0,#N/A,Fiche_releve!AA20) ->  | AK23: =IF(Fiche_releve!AA22=0,#N/A,Fiche_releve!AA22) ->  | AL23: =IF(Fiche_releve!AA24=0,#N/A,Fiche_releve!AA24) ->  | AM23: =IF(Fiche_releve!AA26=0,#N/A,Fiche_releve!AA26) ->  | AN23: =IF(Fiche_releve!AA28=0,#N/A,Fiche_releve!AA28) ->  | AO23: =IF(Fiche_releve!AA30=0,#N/A,Fiche_releve!AA30) -> 
B24: 2.42 | C24: 2.4 | D24: =Fiche_releve!$B$6 -> 2.5 | E24: 2.6 | F24: 2.58 | G24: =_xlfn.NUMBERVALUE(IF(ISBLANK(INDIRECT("Etape!E22")),#N/A,INDIRECT("Etape!E22"))) ->  | I24: 1.92 | J24: 1.9 | K24: =Fiche_releve!$B$8 -> 2 | L24: 2.1 | M24: 2.08 | N24: =_xlfn.NUMBERVALUE(IF(ISBLANK(INDIRECT("Etape!F22")),#N/A,INDIRECT("Etape!F22"))) ->  | Q24: 1.92 | R24: 1.9 | S24: =Fiche_releve!$B$10 -> 2 | T24: 2.1 | U24: 2.08 | V24: =_xlfn.NUMBERVALUE(IF(ISBLANK(INDIRECT("Etape!G22")),#N/A,INDIRECT("Etape!G22"))) ->  | Y24: =Fiche_releve!$E$3&"" ->  | Z24: =Fiche_releve!$K$3 -> 00:00:00 | AA24: =Fiche_releve!$H$3&"" ->  | AB24: =Fiche_releve!AB5&"" -> 85 | AC24: =IF(Fiche_releve!AB6=0,#N/A,Fiche_releve!AB6) ->  | AD24: =IF(Fiche_releve!AB8=0,#N/A,Fiche_releve!AB8) ->  | AE24: =IF(Fiche_releve!AB10=0,#N/A,Fiche_releve!AB10) ->  | AF24: =IF(Fiche_releve!AB12=0,#N/A,Fiche_releve!AB12) ->  | AG24: =IF(Fiche_releve!AB14=0,#N/A,Fiche_releve!AB14) ->  | AH24: =IF(Fiche_releve!AB16=0,#N/A,Fiche_releve!AB16) ->  | AI24: =IF(Fiche_releve!AB18=0,#N/A,Fiche_releve!AB18) ->  | AJ24: =IF(Fiche_releve!AB20=0,#N/A,Fiche_releve!AB20) ->  | AK24: =IF(Fiche_releve!AB22=0,#N/A,Fiche_releve!AB22) ->  | AL24: =IF(Fiche_releve!AB24=0,#N/A,Fiche_releve!AB24) ->  | AM24: =IF(Fiche_releve!AB26=0,#N/A,Fiche_releve!AB26) ->  | AN24: =IF(Fiche_releve!AB28=0,#N/A,Fiche_releve!AB28) ->  | AO24: =IF(Fiche_releve!AB30=0,#N/A,Fiche_releve!AB30) -> 
B25: 2.42 | C25: 2.4 | D25: =Fiche_releve!$B$6 -> 2.5 | E25: 2.6 | F25: 2.58 | G25: =_xlfn.NUMBERVALUE(IF(ISBLANK(INDIRECT("Etape!E23")),#N/A,INDIRECT("Etape!E23"))) ->  | I25: 1.92 | J25: 1.9 | K25: =Fiche_releve!$B$8 -> 2 | L25: 2.1 | M25: 2.08 | N25: =_xlfn.NUMBERVALUE(IF(ISBLANK(INDIRECT("Etape!F23")),#N/A,INDIRECT("Etape!F23"))) ->  | Q25: 1.92 | R25: 1.9 | S25: =Fiche_releve!$B$10 -> 2 | T25: 2.1 | U25: 2.08 | V25: =_xlfn.NUMBERVALUE(IF(ISBLANK(INDIRECT("Etape!G23")),#N/A,INDIRECT("Etape!G23"))) ->  | Y25: =Fiche_releve!$E$3&"" ->  | Z25: =Fiche_releve!$K$3 -> 00:00:00 | AA25: =Fiche_releve!$H$3&"" ->  | AB25: =Fiche_releve!AC5&"" -> 89 | AC25: =IF(Fiche_releve!AC6=0,#N/A,Fiche_releve!AC6) ->  | AD25: =IF(Fiche_releve!AC8=0,#N/A,Fiche_releve!AC8) ->  | AE25: =IF(Fiche_releve!AC10=0,#N/A,Fiche_releve!AC10) ->  | AF25: =IF(Fiche_releve!AC12=0,#N/A,Fiche_releve!AC12) ->  | AG25: =IF(Fiche_releve!AC14=0,#N/A,Fiche_releve!AC14) ->  | AH25: =IF(Fiche_releve!AC16=0,#N/A,Fiche_releve!AC16) ->  | AI25: =IF(Fiche_releve!AC18=0,#N/A,Fiche_releve!AC18) ->  | AJ25: =IF(Fiche_releve!AC20=0,#N/A,Fiche_releve!AC20) ->  | AK25: =IF(Fiche_releve!AC22=0,#N/A,Fiche_releve!AC22) ->  | AL25: =IF(Fiche_releve!AC24=0,#N/A,Fiche_releve!AC24) ->  | AM25: =IF(Fiche_releve!AC26=0,#N/A,Fiche_releve!AC26) ->  | AN25: =IF(Fiche_releve!AC28=0,#N/A,Fiche_releve!AC28) ->  | AO25: =IF(Fiche_releve!AC30=0,#N/A,Fiche_releve!AC30) -> 
B26: 2.42 | C26: 2.4 | D26: =Fiche_releve!$B$6 -> 2.5 | E26: 2.6 | F26: 2.58 | G26: =_xlfn.NUMBERVALUE(IF(ISBLANK(INDIRECT("Etape!E24")),#N/A,INDIRECT("Etape!E24"))) ->  | I26: 1.92 | J26: 1.9 | K26: =Fiche_releve!$B$8 -> 2 | L26: 2.1 | M26: 2.08 | N26: =_xlfn.NUMBERVALUE(IF(ISBLANK(INDIRECT("Etape!F24")),#N/A,INDIRECT("Etape!F24"))) ->  | Q26: 1.92 | R26: 1.9 | S26: =Fiche_releve!$B$10 -> 2 | T26: 2.1 | U26: 2.08 | V26: =_xlfn.NUMBERVALUE(IF(ISBLANK(INDIRECT("Etape!G24")),#N/A,INDIRECT("Etape!G24"))) ->  | Y26: =Fiche_releve!$E$3&"" ->  | Z26: =Fiche_releve!$K$3 -> 00:00:00 | AA26: =Fiche_releve!$H$3&"" ->  | AB26: =Fiche_releve!AD5&"" -> 93 | AC26: =IF(Fiche_releve!AD6=0,#N/A,Fiche_releve!AD6) ->  | AD26: =IF(Fiche_releve!AD8=0,#N/A,Fiche_releve!AD8) ->  | AE26: =IF(Fiche_releve!AD10=0,#N/A,Fiche_releve!AD10) ->  | AF26: =IF(Fiche_releve!AD12=0,#N/A,Fiche_releve!AD12) ->  | AG26: =IF(Fiche_releve!AD14=0,#N/A,Fiche_releve!AD14) ->  | AH26: =IF(Fiche_releve!AD16=0,#N/A,Fiche_releve!AD16) ->  | AI26: =IF(Fiche_releve!AD18=0,#N/A,Fiche_releve!AD18) ->  | AJ26: =IF(Fiche_releve!AD20=0,#N/A,Fiche_releve!AD20) ->  | AK26: =IF(Fiche_releve!AD22=0,#N/A,Fiche_releve!AD22) ->  | AL26: =IF(Fiche_releve!AD24=0,#N/A,Fiche_releve!AD24) ->  | AM26: =IF(Fiche_releve!AD26=0,#N/A,Fiche_releve!AD26) ->  | AN26: =IF(Fiche_releve!AD28=0,#N/A,Fiche_releve!AD28) ->  | AO26: =IF(Fiche_releve!AD30=0,#N/A,Fiche_releve!AD30) -> 
B27: 2.42 | C27: 2.4 | D27: =Fiche_releve!$B$6 -> 2.5 | E27: 2.6 | F27: 2.58 | G27: =_xlfn.NUMBERVALUE(IF(ISBLANK(INDIRECT("Etape!E25")),#N/A,INDIRECT("Etape!E25"))) ->  | I27: 1.92 | J27: 1.9 | K27: =Fiche_releve!$B$8 -> 2 | L27: 2.1 | M27: 2.08 | N27: =_xlfn.NUMBERVALUE(IF(ISBLANK(INDIRECT("Etape!F25")),#N/A,INDIRECT("Etape!F25"))) ->  | Q27: 1.92 | R27: 1.9 | S27: =Fiche_releve!$B$10 -> 2 | T27: 2.1 | U27: 2.08 | V27: =_xlfn.NUMBERVALUE(IF(ISBLANK(INDIRECT("Etape!G25")),#N/A,INDIRECT("Etape!G25"))) ->  | Y27: =Fiche_releve!$E$3&"" ->  | Z27: =Fiche_releve!$K$3 -> 00:00:00 | AA27: =Fiche_releve!$H$3&"" ->  | AB27: =Fiche_releve!AE5&"" -> 97 | AC27: =IF(Fiche_releve!AE6=0,#N/A,Fiche_releve!AE6) ->  | AD27: =IF(Fiche_releve!AE8=0,#N/A,Fiche_releve!AE8) ->  | AE27: =IF(Fiche_releve!AE10=0,#N/A,Fiche_releve!AE10) ->  | AF27: =IF(Fiche_releve!AE12=0,#N/A,Fiche_releve!AE12) ->  | AG27: =IF(Fiche_releve!AE14=0,#N/A,Fiche_releve!AE14) ->  | AH27: =IF(Fiche_releve!AE16=0,#N/A,Fiche_releve!AE16) ->  | AI27: =IF(Fiche_releve!AE18=0,#N/A,Fiche_releve!AE18) ->  | AJ27: =IF(Fiche_releve!AE20=0,#N/A,Fiche_releve!AE20) ->  | AK27: =IF(Fiche_releve!AE22=0,#N/A,Fiche_releve!AE22) ->  | AL27: =IF(Fiche_releve!AE24=0,#N/A,Fiche_releve!AE24) ->  | AM27: =IF(Fiche_releve!AE26=0,#N/A,Fiche_releve!AE26) ->  | AN27: =IF(Fiche_releve!AE28=0,#N/A,Fiche_releve!AE28) ->  | AO27: =IF(Fiche_releve!AE30=0,#N/A,Fiche_releve!AE30) -> 
B28: 2.42 | C28: 2.4 | D28: =Fiche_releve!$B$6 -> 2.5 | E28: 2.6 | F28: 2.58 | G28: =_xlfn.NUMBERVALUE(IF(ISBLANK(INDIRECT("Etape!E26")),#N/A,INDIRECT("Etape!E26"))) ->  | I28: 1.92 | J28: 1.9 | K28: =Fiche_releve!$B$8 -> 2 | L28: 2.1 | M28: 2.08 | N28: =_xlfn.NUMBERVALUE(IF(ISBLANK(INDIRECT("Etape!F26")),#N/A,INDIRECT("Etape!F26"))) ->  | Q28: 1.92 | R28: 1.9 | S28: =Fiche_releve!$B$10 -> 2 | T28: 2.1 | U28: 2.08 | V28: =_xlfn.NUMBERVALUE(IF(ISBLANK(INDIRECT("Etape!G26")),#N/A,INDIRECT("Etape!G26"))) ->  | Y28: =Fiche_releve!$E$3&"" ->  | Z28: =Fiche_releve!$K$3 -> 00:00:00 | AA28: =Fiche_releve!$H$3&"" ->  | AB28: =Fiche_releve!AF5&"" -> 101 | AC28: =IF(Fiche_releve!AF6=0,#N/A,Fiche_releve!AF6) ->  | AD28: =IF(Fiche_releve!AF8=0,#N/A,Fiche_releve!AF8) ->  | AE28: =IF(Fiche_releve!AF10=0,#N/A,Fiche_releve!AF10) ->  | AF28: =IF(Fiche_releve!AF12=0,#N/A,Fiche_releve!AF12) ->  | AG28: =IF(Fiche_releve!AF14=0,#N/A,Fiche_releve!AF14) ->  | AH28: =IF(Fiche_releve!AF16=0,#N/A,Fiche_releve!AF16) ->  | AI28: =IF(Fiche_releve!AF18=0,#N/A,Fiche_releve!AF18) ->  | AJ28: =IF(Fiche_releve!AF20=0,#N/A,Fiche_releve!AF20) ->  | AK28: =IF(Fiche_releve!AF22=0,#N/A,Fiche_releve!AF22) ->  | AL28: =IF(Fiche_releve!AF24=0,#N/A,Fiche_releve!AF24) ->  | AM28: =IF(Fiche_releve!AF26=0,#N/A,Fiche_releve!AF26) ->  | AN28: =IF(Fiche_releve!AF28=0,#N/A,Fiche_releve!AF28) ->  | AO28: =IF(Fiche_releve!AF30=0,#N/A,Fiche_releve!AF30) -> 
B29: 2.42 | C29: 2.4 | D29: =Fiche_releve!$B$6 -> 2.5 | E29: 2.6 | F29: 2.58 | G29: =_xlfn.NUMBERVALUE(IF(ISBLANK(INDIRECT("Etape!E27")),#N/A,INDIRECT("Etape!E27"))) ->  | I29: 1.92 | J29: 1.9 | K29: =Fiche_releve!$B$8 -> 2 | L29: 2.1 | M29: 2.08 | N29: =_xlfn.NUMBERVALUE(IF(ISBLANK(INDIRECT("Etape!F27")),#N/A,INDIRECT("Etape!F27"))) ->  | Q29: 1.92 | R29: 1.9 | S29: =Fiche_releve!$B$10 -> 2 | T29: 2.1 | U29: 2.08 | V29: =_xlfn.NUMBERVALUE(IF(ISBLANK(INDIRECT("Etape!G27")),#N/A,INDIRECT("Etape!G27"))) ->  | Y29: =Fiche_releve!$E$3&"" ->  | Z29: =Fiche_releve!$K$3 -> 00:00:00 | AA29: =Fiche_releve!$H$3&"" ->  | AB29: =Fiche_releve!AG5&"" -> 105 | AC29: =IF(Fiche_releve!AG6=0,#N/A,Fiche_releve!AG6) ->  | AD29: =IF(Fiche_releve!AG8=0,#N/A,Fiche_releve!AG8) ->  | AE29: =IF(Fiche_releve!AG10=0,#N/A,Fiche_releve!AG10) ->  | AF29: =IF(Fiche_releve!AG12=0,#N/A,Fiche_releve!AG12) ->  | AG29: =IF(Fiche_releve!AG14=0,#N/A,Fiche_releve!AG14) ->  | AH29: =IF(Fiche_releve!AG16=0,#N/A,Fiche_releve!AG16) ->  | AI29: =IF(Fiche_releve!AG18=0,#N/A,Fiche_releve!AG18) ->  | AJ29: =IF(Fiche_releve!AG20=0,#N/A,Fiche_releve!AG20) ->  | AK29: =IF(Fiche_releve!AG22=0,#N/A,Fiche_releve!AG22) ->  | AL29: =IF(Fiche_releve!AG24=0,#N/A,Fiche_releve!AG24) ->  | AM29: =IF(Fiche_releve!AG26=0,#N/A,Fiche_releve!AG26) ->  | AN29: =IF(Fiche_releve!AG28=0,#N/A,Fiche_releve!AG28) ->  | AO29: =IF(Fiche_releve!AG30=0,#N/A,Fiche_releve!AG30) -> 
B30: 2.42 | C30: 2.4 | D30: =Fiche_releve!$B$6 -> 2.5 | E30: 2.6 | F30: 2.58 | G30: =_xlfn.NUMBERVALUE(IF(ISBLANK(INDIRECT("Etape!E28")),#N/A,INDIRECT("Etape!E28"))) ->  | I30: 1.92 | J30: 1.9 | K30: =Fiche_releve!$B$8 -> 2 | L30: 2.1 | M30: 2.08 | N30: =_xlfn.NUMBERVALUE(IF(ISBLANK(INDIRECT("Etape!F28")),#N/A,INDIRECT("Etape!F28"))) ->  | Q30: 1.92 | R30: 1.9 | S30: =Fiche_releve!$B$10 -> 2 | T30: 2.1 | U30: 2.08 | V30: =_xlfn.NUMBERVALUE(IF(ISBLANK(INDIRECT("Etape!G28")),#N/A,INDIRECT("Etape!G28"))) -> 
B31: 2.42 | C31: 2.4 | D31: =Fiche_releve!$B$6 -> 2.5 | E31: 2.6 | F31: 2.58 | G31: =_xlfn.NUMBERVALUE(IF(ISBLANK(INDIRECT("Etape!E29")),#N/A,INDIRECT("Etape!E29"))) ->  | I31: 1.92 | J31: 1.9 | K31: =Fiche_releve!$B$8 -> 2 | L31: 2.1 | M31: 2.08 | N31: =_xlfn.NUMBERVALUE(IF(ISBLANK(INDIRECT("Etape!F29")),#N/A,INDIRECT("Etape!F29"))) ->  | Q31: 1.92 | R31: 1.9 | S31: =Fiche_releve!$B$10 -> 2 | T31: 2.1 | U31: 2.08 | V31: =_xlfn.NUMBERVALUE(IF(ISBLANK(INDIRECT("Etape!G29")),#N/A,INDIRECT("Etape!G29"))) ->  | AC31: Cette feuille permet de classer les données avant de les transférer dans la base de données grâce au tableau Tvaleurs. Les autres tableau correspondent respectivement à chaque cote relevé. Ils sont indispensable pour permettre le tracage des différents graphique. Pour les tableaux des cotes : IT- : brone inférieur de l'intervalle de tolérance IT+ : Borne sup de l'I.T. N : Valeur du nominal - : limite inférieur d'auto-controle + : limite supérieur d'auto-controle Valeurs relevées : valeurs relevées à partir de la feuille "fiche_releve" récupérée de la feuille Etape qui permet d'avoir les 50 dernières valeurs sur le graphique.
B32: 2.42 | C32: 2.4 | D32: =Fiche_releve!$B$6 -> 2.5 | E32: 2.6 | F32: 2.58 | G32: =_xlfn.NUMBERVALUE(IF(ISBLANK(INDIRECT("Etape!E30")),#N/A,INDIRECT("Etape!E30"))) ->  | I32: 1.92 | J32: 1.9 | K32: =Fiche_releve!$B$8 -> 2 | L32: 2.1 | M32: 2.08 | N32: =_xlfn.NUMBERVALUE(IF(ISBLANK(INDIRECT("Etape!F30")),#N/A,INDIRECT("Etape!F30"))) ->  | Q32: 1.92 | R32: 1.9 | S32: =Fiche_releve!$B$10 -> 2 | T32: 2.1 | U32: 2.08 | V32: =_xlfn.NUMBERVALUE(IF(ISBLANK(INDIRECT("Etape!G30")),#N/A,INDIRECT("Etape!G30"))) -> 
B33: 2.42 | C33: 2.4 | D33: =Fiche_releve!$B$6 -> 2.5 | E33: 2.6 | F33: 2.58 | G33: =_xlfn.NUMBERVALUE(IF(ISBLANK(INDIRECT("Etape!E31")),#N/A,INDIRECT("Etape!E31"))) ->  | I33: 1.92 | J33: 1.9 | K33: =Fiche_releve!$B$8 -> 2 | L33: 2.1 | M33: 2.08 | N33: =_xlfn.NUMBERVALUE(IF(ISBLANK(INDIRECT("Etape!F31")),#N/A,INDIRECT("Etape!F31"))) ->  | Q33: 1.92 | R33: 1.9 | S33: =Fiche_releve!$B$10 -> 2 | T33: 2.1 | U33: 2.08 | V33: =_xlfn.NUMBERVALUE(IF(ISBLANK(INDIRECT("Etape!G31")),#N/A,INDIRECT("Etape!G31"))) -> 
B34: 2.42 | C34: 2.4 | D34: =Fiche_releve!$B$6 -> 2.5 | E34: 2.6 | F34: 2.58 | G34: =_xlfn.NUMBERVALUE(IF(ISBLANK(INDIRECT("Etape!E32")),#N/A,INDIRECT("Etape!E32"))) ->  | I34: 1.92 | J34: 1.9 | K34: =Fiche_releve!$B$8 -> 2 | L34: 2.1 | M34: 2.08 | N34: =_xlfn.NUMBERVALUE(IF(ISBLANK(INDIRECT("Etape!F32")),#N/A,INDIRECT("Etape!F32"))) ->  | Q34: 1.92 | R34: 1.9 | S34: =Fiche_releve!$B$10 -> 2 | T34: 2.1 | U34: 2.08 | V34: =_xlfn.NUMBERVALUE(IF(ISBLANK(INDIRECT("Etape!G32")),#N/A,INDIRECT("Etape!G32"))) -> 
B35: 2.42 | C35: 2.4 | D35: =Fiche_releve!$B$6 -> 2.5 | E35: 2.6 | F35: 2.58 | G35: =_xlfn.NUMBERVALUE(IF(ISBLANK(INDIRECT("Etape!E33")),#N/A,INDIRECT("Etape!E33"))) ->  | I35: 1.92 | J35: 1.9 | K35: =Fiche_releve!$B$8 -> 2 | L35: 2.1 | M35: 2.08 | N35: =_xlfn.NUMBERVALUE(IF(ISBLANK(INDIRECT("Etape!F33")),#N/A,INDIRECT("Etape!F33"))) ->  | Q35: 1.92 | R35: 1.9 | S35: =Fiche_releve!$B$10 -> 2 | T35: 2.1 | U35: 2.08 | V35: =_xlfn.NUMBERVALUE(IF(ISBLANK(INDIRECT("Etape!G33")),#N/A,INDIRECT("Etape!G33"))) -> 
B36: 2.42 | C36: 2.4 | D36: =Fiche_releve!$B$6 -> 2.5 | E36: 2.6 | F36: 2.58 | G36: =_xlfn.NUMBERVALUE(IF(ISBLANK(INDIRECT("Etape!E34")),#N/A,INDIRECT("Etape!E34"))) ->  | I36: 1.92 | J36: 1.9 | K36: =Fiche_releve!$B$8 -> 2 | L36: 2.1 | M36: 2.08 | N36: =_xlfn.NUMBERVALUE(IF(ISBLANK(INDIRECT("Etape!F34")),#N/A,INDIRECT("Etape!F34"))) ->  | Q36: 1.92 | R36: 1.9 | S36: =Fiche_releve!$B$10 -> 2 | T36: 2.1 | U36: 2.08 | V36: =_xlfn.NUMBERVALUE(IF(ISBLANK(INDIRECT("Etape!G34")),#N/A,INDIRECT("Etape!G34"))) -> 
B37: 2.42 | C37: 2.4 | D37: =Fiche_releve!$B$6 -> 2.5 | E37: 2.6 | F37: 2.58 | G37: =_xlfn.NUMBERVALUE(IF(ISBLANK(INDIRECT("Etape!E35")),#N/A,INDIRECT("Etape!E35"))) ->  | I37: 1.92 | J37: 1.9 | K37: =Fiche_releve!$B$8 -> 2 | L37: 2.1 | M37: 2.08 | N37: =_xlfn.NUMBERVALUE(IF(ISBLANK(INDIRECT("Etape!F35")),#N/A,INDIRECT("Etape!F35"))) ->  | Q37: 1.92 | R37: 1.9 | S37: =Fiche_releve!$B$10 -> 2 | T37: 2.1 | U37: 2.08 | V37: =_xlfn.NUMBERVALUE(IF(ISBLANK(INDIRECT("Etape!G35")),#N/A,INDIRECT("Etape!G35"))) -> 
B38: 2.42 | C38: 2.4 | D38: =Fiche_releve!$B$6 -> 2.5 | E38: 2.6 | F38: 2.58 | G38: =_xlfn.NUMBERVALUE(IF(ISBLANK(INDIRECT("Etape!E36")),#N/A,INDIRECT("Etape!E36"))) ->  | I38: 1.92 | J38: 1.9 | K38: =Fiche_releve!$B$8 -> 2 | L38: 2.1 | M38: 2.08 | N38: =_xlfn.NUMBERVALUE(IF(ISBLANK(INDIRECT("Etape!F36")),#N/A,INDIRECT("Etape!F36"))) ->  | Q38: 1.92 | R38: 1.9 | S38: =Fiche_releve!$B$10 -> 2 | T38: 2.1 | U38: 2.08 | V38: =_xlfn.NUMBERVALUE(IF(ISBLANK(INDIRECT("Etape!G36")),#N/A,INDIRECT("Etape!G36"))) -> 
B39: 2.42 | C39: 2.4 | D39: =Fiche_releve!$B$6 -> 2.5 | E39: 2.6 | F39: 2.58 | G39: =_xlfn.NUMBERVALUE(IF(ISBLANK(INDIRECT("Etape!E37")),#N/A,INDIRECT("Etape!E37"))) ->  | I39: 1.92 | J39: 1.9 | K39: =Fiche_releve!$B$8 -> 2 | L39: 2.1 | M39: 2.08 | N39: =_xlfn.NUMBERVALUE(IF(ISBLANK(INDIRECT("Etape!F37")),#N/A,INDIRECT("Etape!F37"))) ->  | Q39: 1.92 | R39: 1.9 | S39: =Fiche_releve!$B$10 -> 2 | T39: 2.1 | U39: 2.08 | V39: =_xlfn.NUMBERVALUE(IF(ISBLANK(INDIRECT("Etape!G37")),#N/A,INDIRECT("Etape!G37"))) -> 
B40: 2.42 | C40: 2.4 | D40: =Fiche_releve!$B$6 -> 2.5 | E40: 2.6 | F40: 2.58 | G40: =_xlfn.NUMBERVALUE(IF(ISBLANK(INDIRECT("Etape!E38")),#N/A,INDIRECT("Etape!E38"))) ->  | I40: 1.92 | J40: 1.9 | K40: =Fiche_releve!$B$8 -> 2 | L40: 2.1 | M40: 2.08 | N40: =_xlfn.NUMBERVALUE(IF(ISBLANK(INDIRECT("Etape!F38")),#N/A,INDIRECT("Etape!F38"))) ->  | Q40: 1.92 | R40: 1.9 | S40: =Fiche_releve!$B$10 -> 2 | T40: 2.1 | U40: 2.08 | V40: =_xlfn.NUMBERVALUE(IF(ISBLANK(INDIRECT("Etape!G38")),#N/A,INDIRECT("Etape!G38"))) -> 
B41: 2.42 | C41: 2.4 | D41: =Fiche_releve!$B$6 -> 2.5 | E41: 2.6 | F41: 2.58 | G41: =_xlfn.NUMBERVALUE(IF(ISBLANK(INDIRECT("Etape!E39")),#N/A,INDIRECT("Etape!E39"))) ->  | I41: 1.92 | J41: 1.9 | K41: =Fiche_releve!$B$8 -> 2 | L41: 2.1 | M41: 2.08 | N41: =_xlfn.NUMBERVALUE(IF(ISBLANK(INDIRECT("Etape!F39")),#N/A,INDIRECT("Etape!F39"))) ->  | Q41: 1.92 | R41: 1.9 | S41: =Fiche_releve!$B$10 -> 2 | T41: 2.1 | U41: 2.08 | V41: =_xlfn.NUMBERVALUE(IF(ISBLANK(INDIRECT("Etape!G39")),#N/A,INDIRECT("Etape!G39"))) -> 
B42: 2.42 | C42: 2.4 | D42: =Fiche_releve!$B$6 -> 2.5 | E42: 2.6 | F42: 2.58 | G42: =_xlfn.NUMBERVALUE(IF(ISBLANK(INDIRECT("Etape!E40")),#N/A,INDIRECT("Etape!E40"))) ->  | I42: 1.92 | J42: 1.9 | K42: =Fiche_releve!$B$8 -> 2 | L42: 2.1 | M42: 2.08 | N42: =_xlfn.NUMBERVALUE(IF(ISBLANK(INDIRECT("Etape!F40")),#N/A,INDIRECT("Etape!F40"))) ->  | Q42: 1.92 | R42: 1.9 | S42: =Fiche_releve!$B$10 -> 2 | T42: 2.1 | U42: 2.08 | V42: =_xlfn.NUMBERVALUE(IF(ISBLANK(INDIRECT("Etape!G40")),#N/A,INDIRECT("Etape!G40"))) -> 
B43: 2.42 | C43: 2.4 | D43: =Fiche_releve!$B$6 -> 2.5 | E43: 2.6 | F43: 2.58 | G43: =_xlfn.NUMBERVALUE(IF(ISBLANK(INDIRECT("Etape!E41")),#N/A,INDIRECT("Etape!E41"))) ->  | I43: 1.92 | J43: 1.9 | K43: =Fiche_releve!$B$8 -> 2 | L43: 2.1 | M43: 2.08 | N43: =_xlfn.NUMBERVALUE(IF(ISBLANK(INDIRECT("Etape!F41")),#N/A,INDIRECT("Etape!F41"))) ->  | Q43: 1.92 | R43: 1.9 | S43: =Fiche_releve!$B$10 -> 2 | T43: 2.1 | U43: 2.08 | V43: =_xlfn.NUMBERVALUE(IF(ISBLANK(INDIRECT("Etape!G41")),#N/A,INDIRECT("Etape!G41"))) -> 
B44: 2.42 | C44: 2.4 | D44: =Fiche_releve!$B$6 -> 2.5 | E44: 2.6 | F44: 2.58 | G44: =_xlfn.NUMBERVALUE(IF(ISBLANK(INDIRECT("Etape!E42")),#N/A,INDIRECT("Etape!E42"))) ->  | I44: 1.92 | J44: 1.9 | K44: =Fiche_releve!$B$8 -> 2 | L44: 2.1 | M44: 2.08 | N44: =_xlfn.NUMBERVALUE(IF(ISBLANK(INDIRECT("Etape!F42")),#N/A,INDIRECT("Etape!F42"))) ->  | Q44: 1.92 | R44: 1.9 | S44: =Fiche_releve!$B$10 -> 2 | T44: 2.1 | U44: 2.08 | V44: =_xlfn.NUMBERVALUE(IF(ISBLANK(INDIRECT("Etape!G42")),#N/A,INDIRECT("Etape!G42"))) -> 
B45: 2.42 | C45: 2.4 | D45: =Fiche_releve!$B$6 -> 2.5 | E45: 2.6 | F45: 2.58 | G45: =_xlfn.NUMBERVALUE(IF(ISBLANK(INDIRECT("Etape!E43")),#N/A,INDIRECT("Etape!E43"))) ->  | I45: 1.92 | J45: 1.9 | K45: =Fiche_releve!$B$8 -> 2 | L45: 2.1 | M45: 2.08 | N45: =_xlfn.NUMBERVALUE(IF(ISBLANK(INDIRECT("Etape!F43")),#N/A,INDIRECT("Etape!F43"))) ->  | Q45: 1.92 | R45: 1.9 | S45: =Fiche_releve!$B$10 -> 2 | T45: 2.1 | U45: 2.08 | V45: =_xlfn.NUMBERVALUE(IF(ISBLANK(INDIRECT("Etape!G43")),#N/A,INDIRECT("Etape!G43"))) -> 
B46: 2.42 | C46: 2.4 | D46: =Fiche_releve!$B$6 -> 2.5 | E46: 2.6 | F46: 2.58 | G46: =_xlfn.NUMBERVALUE(IF(ISBLANK(INDIRECT("Etape!E44")),#N/A,INDIRECT("Etape!E44"))) ->  | I46: 1.92 | J46: 1.9 | K46: =Fiche_releve!$B$8 -> 2 | L46: 2.1 | M46: 2.08 | N46: =_xlfn.NUMBERVALUE(IF(ISBLANK(INDIRECT("Etape!F44")),#N/A,INDIRECT("Etape!F44"))) ->  | Q46: 1.92 | R46: 1.9 | S46: =Fiche_releve!$B$10 -> 2 | T46: 2.1 | U46: 2.08 | V46: =_xlfn.NUMBERVALUE(IF(ISBLANK(INDIRECT("Etape!G44")),#N/A,INDIRECT("Etape!G44"))) -> 
B47: 2.42 | C47: 2.4 | D47: =Fiche_releve!$B$6 -> 2.5 | E47: 2.6 | F47: 2.58 | G47: =_xlfn.NUMBERVALUE(IF(ISBLANK(INDIRECT("Etape!E45")),#N/A,INDIRECT("Etape!E45"))) ->  | I47: 1.92 | J47: 1.9 | K47: =Fiche_releve!$B$8 -> 2 | L47: 2.1 | M47: 2.08 | N47: =_xlfn.NUMBERVALUE(IF(ISBLANK(INDIRECT("Etape!F45")),#N/A,INDIRECT("Etape!F45"))) ->  | Q47: 1.92 | R47: 1.9 | S47: =Fiche_releve!$B$10 -> 2 | T47: 2.1 | U47: 2.08 | V47: =_xlfn.NUMBERVALUE(IF(ISBLANK(INDIRECT("Etape!G45")),#N/A,INDIRECT("Etape!G45"))) -> 
B48: 2.42 | C48: 2.4 | D48: =Fiche_releve!$B$6 -> 2.5 | E48: 2.6 | F48: 2.58 | G48: =_xlfn.NUMBERVALUE(IF(ISBLANK(INDIRECT("Etape!E46")),#N/A,INDIRECT("Etape!E46"))) ->  | I48: 1.92 | J48: 1.9 | K48: =Fiche_releve!$B$8 -> 2 | L48: 2.1 | M48: 2.08 | N48: =_xlfn.NUMBERVALUE(IF(ISBLANK(INDIRECT("Etape!F46")),#N/A,INDIRECT("Etape!F46"))) ->  | Q48: 1.92 | R48: 1.9 | S48: =Fiche_releve!$B$10 -> 2 | T48: 2.1 | U48: 2.08 | V48: =_xlfn.NUMBERVALUE(IF(ISBLANK(INDIRECT("Etape!G46")),#N/A,INDIRECT("Etape!G46"))) -> 
B49: 2.42 | C49: 2.4 | D49: =Fiche_releve!$B$6 -> 2.5 | E49: 2.6 | F49: 2.58 | G49: =_xlfn.NUMBERVALUE(IF(ISBLANK(INDIRECT("Etape!E47")),#N/A,INDIRECT("Etape!E47"))) ->  | I49: 1.92 | J49: 1.9 | K49: =Fiche_releve!$B$8 -> 2 | L49: 2.1 | M49: 2.08 | N49: =_xlfn.NUMBERVALUE(IF(ISBLANK(INDIRECT("Etape!F47")),#N/A,INDIRECT("Etape!F47"))) ->  | Q49: 1.92 | R49: 1.9 | S49: =Fiche_releve!$B$10 -> 2 | T49: 2.1 | U49: 2.08 | V49: =_xlfn.NUMBERVALUE(IF(ISBLANK(INDIRECT("Etape!G47")),#N/A,INDIRECT("Etape!G47"))) -> 
B50: 2.42 | C50: 2.4 | D50: =Fiche_releve!$B$6 -> 2.5 | E50: 2.6 | F50: 2.58 | G50: =_xlfn.NUMBERVALUE(IF(ISBLANK(INDIRECT("Etape!E48")),#N/A,INDIRECT("Etape!E48"))) ->  | I50: 1.92 | J50: 1.9 | K50: =Fiche_releve!$B$8 -> 2 | L50: 2.1 | M50: 2.08 | N50: =_xlfn.NUMBERVALUE(IF(ISBLANK(INDIRECT("Etape!F48")),#N/A,INDIRECT("Etape!F48"))) ->  | Q50: 1.92 | R50: 1.9 | S50: =Fiche_releve!$B$10 -> 2 | T50: 2.1 | U50: 2.08 | V50: =_xlfn.NUMBERVALUE(IF(ISBLANK(INDIRECT("Etape!G48")),#N/A,INDIRECT("Etape!G48"))) -> 
B51: 2.42 | C51: 2.4 | D51: =Fiche_releve!$B$6 -> 2.5 | E51: 2.6 | F51: 2.58 | G51: =_xlfn.NUMBERVALUE(IF(ISBLANK(INDIRECT("Etape!E49")),#N/A,INDIRECT("Etape!E49"))) ->  | I51: 1.92 | J51: 1.9 | K51: =Fiche_releve!$B$8 -> 2 | L51: 2.1 | M51: 2.08 | N51: =_xlfn.NUMBERVALUE(IF(ISBLANK(INDIRECT("Etape!F49")),#N/A,INDIRECT("Etape!F49"))) ->  | Q51: 1.92 | R51: 1.9 | S51: =Fiche_releve!$B$10 -> 2 | T51: 2.1 | U51: 2.08 | V51: =_xlfn.NUMBERVALUE(IF(ISBLANK(INDIRECT("Etape!G49")),#N/A,INDIRECT("Etape!G49"))) -> 
B52: 2.42 | C52: 2.4 | D52: =Fiche_releve!$B$6 -> 2.5 | E52: 2.6 | F52: 2.58 | G52: =_xlfn.NUMBERVALUE(IF(ISBLANK(INDIRECT("Etape!E50")),#N/A,INDIRECT("Etape!E50"))) ->  | I52: 1.92 | J52: 1.9 | K52: =Fiche_releve!$B$8 -> 2 | L52: 2.1 | M52: 2.08 | N52: =_xlfn.NUMBERVALUE(IF(ISBLANK(INDIRECT("Etape!F50")),#N/A,INDIRECT("Etape!F50"))) ->  | Q52: 1.92 | R52: 1.9 | S52: =Fiche_releve!$B$10 -> 2 | T52: 2.1 | U52: 2.08 | V52: =_xlfn.NUMBERVALUE(IF(ISBLANK(INDIRECT("Etape!G50")),#N/A,INDIRECT("Etape!G50"))) -> 
B53: 2.42 | C53: 2.4 | D53: =Fiche_releve!$B$6 -> 2.5 | E53: 2.6 | F53: 2.58 | G53: =_xlfn.NUMBERVALUE(IF(ISBLANK(INDIRECT("Etape!E51")),#N/A,INDIRECT("Etape!E51"))) ->  | I53: 1.92 | J53: 1.9 | K53: =Fiche_releve!$B$8 -> 2 | L53: 2.1 | M53: 2.08 | N53: =_xlfn.NUMBERVALUE(IF(ISBLANK(INDIRECT("Etape!F51")),#N/A,INDIRECT("Etape!F51"))) ->  | Q53: 1.92 | R53: 1.9 | S53: =Fiche_releve!$B$10 -> 2 | T53: 2.1 | U53: 2.08 | V53: =_xlfn.NUMBERVALUE(IF(ISBLANK(INDIRECT("Etape!G51")),#N/A,INDIRECT("Etape!G51"))) -> 
C55: Repère 4 | G55: Valeurs relevées | J55: Repère 6 | N55: Valeurs relevées | R55: Repère 7 | V55: Valeurs relevées
B56: - | C56: IT- | D56: Cote nominale | E56: IT+ | F56: + | I56: - | J56: IT- | K56: Cote nominale | L56: IT+ | M56: + | Q56: - | R56: IT- | S56: Cote nominale | T56: IT+ | U56: +
B57: 20.92 | C57: =21-0.1 -> 20.9 | D57: =Fiche_releve!$B$12 -> 21 | E57: =21+0.1 -> 21.1 | F57: 21.08 | G57: =_xlfn.NUMBERVALUE(IF(ISBLANK(INDIRECT("Etape!H2")),#N/A,INDIRECT("Etape!H2"))) ->  | I57: 1.92 | J57: 1.9 | K57: =Fiche_releve!$B$16 -> 2 | L57: 2.1 | M57: 2.08 | N57: =_xlfn.NUMBERVALUE(IF(ISBLANK(INDIRECT("Etape!J2")),#N/A,INDIRECT("Etape!J2"))) -> 2.02 | Q57: 1.92 | R57: 1.9 | S57: =Fiche_releve!$B$18 -> 2 | T57: 2.1 | U57: 2.08 | V57: =_xlfn.NUMBERVALUE(IF(ISBLANK(INDIRECT("Etape!K2")),#N/A,INDIRECT("Etape!K2"))) -> 2.01
B58: 20.92 | C58: =21-0.1 -> 20.9 | D58: =Fiche_releve!$B$12 -> 21 | E58: =21+0.1 -> 21.1 | F58: 21.08 | G58: =_xlfn.NUMBERVALUE(IF(ISBLANK(INDIRECT("Etape!H3")),#N/A,INDIRECT("Etape!H3"))) ->  | I58: 1.92 | J58: 1.9 | K58: =Fiche_releve!$B$16 -> 2 | L58: 2.1 | M58: 2.08 | N58: =_xlfn.NUMBERVALUE(IF(ISBLANK(INDIRECT("Etape!J3")),#N/A,INDIRECT("Etape!J3"))) -> 2.02 | Q58: 1.92 | R58: 1.9 | S58: =Fiche_releve!$B$18 -> 2 | T58: 2.1 | U58: 2.08 | V58: =_xlfn.NUMBERVALUE(IF(ISBLANK(INDIRECT("Etape!K3")),#N/A,INDIRECT("Etape!K3"))) -> 2.01
B59: 20.92 | C59: 20.9 | D59: =Fiche_releve!$B$12 -> 21 | E59: 21.1 | F59: 21.08 | G59: =_xlfn.NUMBERVALUE(IF(ISBLANK(INDIRECT("Etape!H4")),#N/A,INDIRECT("Etape!H4"))) ->  | I59: 1.92 | J59: 1.9 | K59: =Fiche_releve!$B$16 -> 2 | L59: 2.1 | M59: 2.08 | N59: =_xlfn.NUMBERVALUE(IF(ISBLANK(INDIRECT("Etape!J4")),#N/A,INDIRECT("Etape!J4"))) -> 2.02 | Q59: 1.92 | R59: 1.9 | S59: =Fiche_releve!$B$18 -> 2 | T59: 2.1 | U59: 2.08 | V59: =_xlfn.NUMBERVALUE(IF(ISBLANK(INDIRECT("Etape!K4")),#N/A,INDIRECT("Etape!K4"))) -> 
B60: 20.92 | C60: 20.9 | D60: =Fiche_releve!$B$12 -> 21 | E60: 21.1 | F60: 21.08 | G60: =_xlfn.NUMBERVALUE(IF(ISBLANK(INDIRECT("Etape!H5")),#N/A,INDIRECT("Etape!H5"))) ->  | I60: 1.92 | J60: 1.9 | K60: =Fiche_releve!$B$16 -> 2 | L60: 2.1 | M60: 2.08 | N60: =_xlfn.NUMBERVALUE(IF(ISBLANK(INDIRECT("Etape!J5")),#N/A,INDIRECT("Etape!J5"))) ->  | Q60: 1.92 | R60: 1.9 | S60: =Fiche_releve!$B$18 -> 2 | T60: 2.1 | U60: 2.08 | V60: =_xlfn.NUMBERVALUE(IF(ISBLANK(INDIRECT("Etape!K5")),#N/A,INDIRECT("Etape!K5"))) -> 
B61: 20.92 | C61: 20.9 | D61: =Fiche_releve!$B$12 -> 21 | E61: 21.1 | F61: 21.08 | G61: =_xlfn.NUMBERVALUE(IF(ISBLANK(INDIRECT("Etape!H6")),#N/A,INDIRECT("Etape!H6"))) ->  | I61: 1.92 | J61: 1.9 | K61: =Fiche_releve!$B$16 -> 2 | L61: 2.1 | M61: 2.08 | N61: =_xlfn.NUMBERVALUE(IF(ISBLANK(INDIRECT("Etape!J6")),#N/A,INDIRECT("Etape!J6"))) -> 1.97 | Q61: 1.92 | R61: 1.9 | S61: =Fiche_releve!$B$18 -> 2 | T61: 2.1 | U61: 2.08 | V61: =_xlfn.NUMBERVALUE(IF(ISBLANK(INDIRECT("Etape!K6")),#N/A,INDIRECT("Etape!K6"))) -> 2.05
B62: 20.92 | C62: 20.9 | D62: =Fiche_releve!$B$12 -> 21 | E62: 21.1 | F62: 21.08 | G62: =_xlfn.NUMBERVALUE(IF(ISBLANK(INDIRECT("Etape!H7")),#N/A,INDIRECT("Etape!H7"))) ->  | I62: 1.92 | J62: 1.9 | K62: =Fiche_releve!$B$16 -> 2 | L62: 2.1 | M62: 2.08 | N62: =_xlfn.NUMBERVALUE(IF(ISBLANK(INDIRECT("Etape!J7")),#N/A,INDIRECT("Etape!J7"))) -> 1.97 | Q62: 1.92 | R62: 1.9 | S62: =Fiche_releve!$B$18 -> 2 | T62: 2.1 | U62: 2.08 | V62: =_xlfn.NUMBERVALUE(IF(ISBLANK(INDIRECT("Etape!K7")),#N/A,INDIRECT("Etape!K7"))) -> 2.05
B63: 20.92 | C63: 20.9 | D63: =Fiche_releve!$B$12 -> 21 | E63: 21.1 | F63: 21.08 | G63: =_xlfn.NUMBERVALUE(IF(ISBLANK(INDIRECT("Etape!H8")),#N/A,INDIRECT("Etape!H8"))) ->  | I63: 1.92 | J63: 1.9 | K63: =Fiche_releve!$B$16 -> 2 | L63: 2.1 | M63: 2.08 | N63: =_xlfn.NUMBERVALUE(IF(ISBLANK(INDIRECT("Etape!J8")),#N/A,INDIRECT("Etape!J8"))) -> 1.97 | Q63: 1.92 | R63: 1.9 | S63: =Fiche_releve!$B$18 -> 2 | T63: 2.1 | U63: 2.08 | V63: =_xlfn.NUMBERVALUE(IF(ISBLANK(INDIRECT("Etape!K8")),#N/A,INDIRECT("Etape!K8"))) -> 
B64: 20.92 | C64: 20.9 | D64: =Fiche_releve!$B$12 -> 21 | E64: 21.1 | F64: 21.08 | G64: =_xlfn.NUMBERVALUE(IF(ISBLANK(INDIRECT("Etape!H9")),#N/A,INDIRECT("Etape!H9"))) ->  | I64: 1.92 | J64: 1.9 | K64: =Fiche_releve!$B$16 -> 2 | L64: 2.1 | M64: 2.08 | N64: =_xlfn.NUMBERVALUE(IF(ISBLANK(INDIRECT("Etape!J9")),#N/A,INDIRECT("Etape!J9"))) ->  | Q64: 1.92 | R64: 1.9 | S64: =Fiche_releve!$B$18 -> 2 | T64: 2.1 | U64: 2.08 | V64: =_xlfn.NUMBERVALUE(IF(ISBLANK(INDIRECT("Etape!K9")),#N/A,INDIRECT("Etape!K9"))) -> 
B65: 20.92 | C65: 20.9 | D65: =Fiche_releve!$B$12 -> 21 | E65: 21.1 | F65: 21.08 | G65: =_xlfn.NUMBERVALUE(IF(ISBLANK(INDIRECT("Etape!H10")),#N/A,INDIRECT("Etape!H10"))) ->  | I65: 1.92 | J65: 1.9 | K65: =Fiche_releve!$B$16 -> 2 | L65: 2.1 | M65: 2.08 | N65: =_xlfn.NUMBERVALUE(IF(ISBLANK(INDIRECT("Etape!J10")),#N/A,INDIRECT("Etape!J10"))) ->  | Q65: 1.92 | R65: 1.9 | S65: =Fiche_releve!$B$18 -> 2 | T65: 2.1 | U65: 2.08 | V65: =_xlfn.NUMBERVALUE(IF(ISBLANK(INDIRECT("Etape!K10")),#N/A,INDIRECT("Etape!K10"))) -> 2.1
B66: 20.92 | C66: 20.9 | D66: =Fiche_releve!$B$12 -> 21 | E66: 21.1 | F66: 21.08 | G66: =_xlfn.NUMBERVALUE(IF(ISBLANK(INDIRECT("Etape!H11")),#N/A,INDIRECT("Etape!H11"))) ->  | I66: 1.92 | J66: 1.9 | K66: =Fiche_releve!$B$16 -> 2 | L66: 2.1 | M66: 2.08 | N66: =_xlfn.NUMBERVALUE(IF(ISBLANK(INDIRECT("Etape!J11")),#N/A,INDIRECT("Etape!J11"))) ->  | Q66: 1.92 | R66: 1.9 | S66: =Fiche_releve!$B$18 -> 2 | T66: 2.1 | U66: 2.08 | V66: =_xlfn.NUMBERVALUE(IF(ISBLANK(INDIRECT("Etape!K11")),#N/A,INDIRECT("Etape!K11"))) -> 2.1
B67: 20.92 | C67: 20.9 | D67: =Fiche_releve!$B$12 -> 21 | E67: 21.1 | F67: 21.08 | G67: =_xlfn.NUMBERVALUE(IF(ISBLANK(INDIRECT("Etape!H12")),#N/A,INDIRECT("Etape!H12"))) ->  | I67: 1.92 | J67: 1.9 | K67: =Fiche_releve!$B$16 -> 2 | L67: 2.1 | M67: 2.08 | N67: =_xlfn.NUMBERVALUE(IF(ISBLANK(INDIRECT("Etape!J12")),#N/A,INDIRECT("Etape!J12"))) ->  | Q67: 1.92 | R67: 1.9 | S67: =Fiche_releve!$B$18 -> 2 | T67: 2.1 | U67: 2.08 | V67: =_xlfn.NUMBERVALUE(IF(ISBLANK(INDIRECT("Etape!K12")),#N/A,INDIRECT("Etape!K12"))) -> 
B68: 20.92 | C68: 20.9 | D68: =Fiche_releve!$B$12 -> 21 | E68: 21.1 | F68: 21.08 | G68: =_xlfn.NUMBERVALUE(IF(ISBLANK(INDIRECT("Etape!H13")),#N/A,INDIRECT("Etape!H13"))) ->  | I68: 1.92 | J68: 1.9 | K68: =Fiche_releve!$B$16 -> 2 | L68: 2.1 | M68: 2.08 | N68: =_xlfn.NUMBERVALUE(IF(ISBLANK(INDIRECT("Etape!J13")),#N/A,INDIRECT("Etape!J13"))) ->  | Q68: 1.92 | R68: 1.9 | S68: =Fiche_releve!$B$18 -> 2 | T68: 2.1 | U68: 2.08 | V68: =_xlfn.NUMBERVALUE(IF(ISBLANK(INDIRECT("Etape!K13")),#N/A,INDIRECT("Etape!K13"))) -> 
B69: 20.92 | C69: 20.9 | D69: =Fiche_releve!$B$12 -> 21 | E69: 21.1 | F69: 21.08 | G69: =_xlfn.NUMBERVALUE(IF(ISBLANK(INDIRECT("Etape!H14")),#N/A,INDIRECT("Etape!H14"))) ->  | I69: 1.92 | J69: 1.9 | K69: =Fiche_releve!$B$16 -> 2 | L69: 2.1 | M69: 2.08 | N69: =_xlfn.NUMBERVALUE(IF(ISBLANK(INDIRECT("Etape!J14")),#N/A,INDIRECT("Etape!J14"))) ->  | Q69: 1.92 | R69: 1.9 | S69: =Fiche_releve!$B$18 -> 2 | T69: 2.1 | U69: 2.08 | V69: =_xlfn.NUMBERVALUE(IF(ISBLANK(INDIRECT("Etape!K14")),#N/A,INDIRECT("Etape!K14"))) -> 
B70: 20.92 | C70: 20.9 | D70: =Fiche_releve!$B$12 -> 21 | E70: 21.1 | F70: 21.08 | G70: =_xlfn.NUMBERVALUE(IF(ISBLANK(INDIRECT("Etape!H15")),#N/A,INDIRECT("Etape!H15"))) ->  | I70: 1.92 | J70: 1.9 | K70: =Fiche_releve!$B$16 -> 2 | L70: 2.1 | M70: 2.08 | N70: =_xlfn.NUMBERVALUE(IF(ISBLANK(INDIRECT("Etape!J15")),#N/A,INDIRECT("Etape!J15"))) ->  | Q70: 1.92 | R70: 1.9 | S70: =Fiche_releve!$B$18 -> 2 | T70: 2.1 | U70: 2.08 | V70: =_xlfn.NUMBERVALUE(IF(ISBLANK(INDIRECT("Etape!K15")),#N/A,INDIRECT("Etape!K15"))) -> 
B71: 20.92 | C71: 20.9 | D71: =Fiche_releve!$B$12 -> 21 | E71: 21.1 | F71: 21.08 | G71: =_xlfn.NUMBERVALUE(IF(ISBLANK(INDIRECT("Etape!H16")),#N/A,INDIRECT("Etape!H16"))) ->  | I71: 1.92 | J71: 1.9 | K71: =Fiche_releve!$B$16 -> 2 | L71: 2.1 | M71: 2.08 | N71: =_xlfn.NUMBERVALUE(IF(ISBLANK(INDIRECT("Etape!J16")),#N/A,INDIRECT("Etape!J16"))) ->  | Q71: 1.92 | R71: 1.9 | S71: =Fiche_releve!$B$18 -> 2 | T71: 2.1 | U71: 2.08 | V71: =_xlfn.NUMBERVALUE(IF(ISBLANK(INDIRECT("Etape!K16")),#N/A,INDIRECT("Etape!K16"))) -> 
B72: 20.92 | C72: 20.9 | D72: =Fiche_releve!$B$12 -> 21 | E72: 21.1 | F72: 21.08 | G72: =_xlfn.NUMBERVALUE(IF(ISBLANK(INDIRECT("Etape!H17")),#N/A,INDIRECT("Etape!H17"))) ->  | I72: 1.92 | J72: 1.9 | K72: =Fiche_releve!$B$16 -> 2 | L72: 2.1 | M72: 2.08 | N72: =_xlfn.NUMBERVALUE(IF(ISBLANK(INDIRECT("Etape!J17")),#N/A,INDIRECT("Etape!J17"))) ->  | Q72: 1.92 | R72: 1.9 | S72: =Fiche_releve!$B$18 -> 2 | T72: 2.1 | U72: 2.08 | V72: =_xlfn.NUMBERVALUE(IF(ISBLANK(INDIRECT("Etape!K17")),#N/A,INDIRECT("Etape!K17"))) -> 
B73: 20.92 | C73: 20.9 | D73: =Fiche_releve!$B$12 -> 21 | E73: 21.1 | F73: 21.08 | G73: =_xlfn.NUMBERVALUE(IF(ISBLANK(INDIRECT("Etape!H18")),#N/A,INDIRECT("Etape!H18"))) ->  | I73: 1.92 | J73: 1.9 | K73: =Fiche_releve!$B$16 -> 2 | L73: 2.1 | M73: 2.08 | N73: =_xlfn.NUMBERVALUE(IF(ISBLANK(INDIRECT("Etape!J18")),#N/A,INDIRECT("Etape!J18"))) ->  | Q73: 1.92 | R73: 1.9 | S73: =Fiche_releve!$B$18 -> 2 | T73: 2.1 | U73: 2.08 | V73: =_xlfn.NUMBERVALUE(IF(ISBLANK(INDIRECT("Etape!K18")),#N/A,INDIRECT("Etape!K18"))) -> 
B74: 20.92 | C74: 20.9 | D74: =Fiche_releve!$B$12 -> 21 | E74: 21.1 | F74: 21.08 | G74: =_xlfn.NUMBERVALUE(IF(ISBLANK(INDIRECT("Etape!H19")),#N/A,INDIRECT("Etape!H19"))) ->  | I74: 1.92 | J74: 1.9 | K74: =Fiche_releve!$B$16 -> 2 | L74: 2.1 | M74: 2.08 | N74: =_xlfn.NUMBERVALUE(IF(ISBLANK(INDIRECT("Etape!J19")),#N/A,INDIRECT("Etape!J19"))) ->  | Q74: 1.92 | R74: 1.9 | S74: =Fiche_releve!$B$18 -> 2 | T74: 2.1 | U74: 2.08 | V74: =_xlfn.NUMBERVALUE(IF(ISBLANK(INDIRECT("Etape!K19")),#N/A,INDIRECT("Etape!K19"))) -> 
B75: 20.92 | C75: 20.9 | D75: =Fiche_releve!$B$12 -> 21 | E75: 21.1 | F75: 21.08 | G75: =_xlfn.NUMBERVALUE(IF(ISBLANK(INDIRECT("Etape!H20")),#N/A,INDIRECT("Etape!H20"))) ->  | I75: 1.92 | J75: 1.9 | K75: =Fiche_releve!$B$16 -> 2 | L75: 2.1 | M75: 2.08 | N75: =_xlfn.NUMBERVALUE(IF(ISBLANK(INDIRECT("Etape!J20")),#N/A,INDIRECT("Etape!J20"))) ->  | Q75: 1.92 | R75: 1.9 | S75: =Fiche_releve!$B$18 -> 2 | T75: 2.1 | U75: 2.08 | V75: =_xlfn.NUMBERVALUE(IF(ISBLANK(INDIRECT("Etape!K20")),#N/A,INDIRECT("Etape!K20"))) -> 
B76: 20.92 | C76: 20.9 | D76: =Fiche_releve!$B$12 -> 21 | E76: 21.1 | F76: 21.08 | G76: =_xlfn.NUMBERVALUE(IF(ISBLANK(INDIRECT("Etape!H21")),#N/A,INDIRECT("Etape!H21"))) ->  | I76: 1.92 | J76: 1.9 | K76: =Fiche_releve!$B$16 -> 2 | L76: 2.1 | M76: 2.08 | N76: =_xlfn.NUMBERVALUE(IF(ISBLANK(INDIRECT("Etape!J21")),#N/A,INDIRECT("Etape!J21"))) ->  | Q76: 1.92 | R76: 1.9 | S76: =Fiche_releve!$B$18 -> 2 | T76: 2.1 | U76: 2.08 | V76: =_xlfn.NUMBERVALUE(IF(ISBLANK(INDIRECT("Etape!K21")),#N/A,INDIRECT("Etape!K21"))) -> 
B77: 20.92 | C77: 20.9 | D77: =Fiche_releve!$B$12 -> 21 | E77: 21.1 | F77: 21.08 | G77: =_xlfn.NUMBERVALUE(IF(ISBLANK(INDIRECT("Etape!H22")),#N/A,INDIRECT("Etape!H22"))) ->  | I77: 1.92 | J77: 1.9 | K77: =Fiche_releve!$B$16 -> 2 | L77: 2.1 | M77: 2.08 | N77: =_xlfn.NUMBERVALUE(IF(ISBLANK(INDIRECT("Etape!J22")),#N/A,INDIRECT("Etape!J22"))) ->  | Q77: 1.92 | R77: 1.9 | S77: =Fiche_releve!$B$18 -> 2 | T77: 2.1 | U77: 2.08 | V77: =_xlfn.NUMBERVALUE(IF(ISBLANK(INDIRECT("Etape!K22")),#N/A,INDIRECT("Etape!K22"))) -> 
B78: 20.92 | C78: 20.9 | D78: =Fiche_releve!$B$12 -> 21 | E78: 21.1 | F78: 21.08 | G78: =_xlfn.NUMBERVALUE(IF(ISBLANK(INDIRECT("Etape!H23")),#N/A,INDIRECT("Etape!H23"))) ->  | I78: 1.92 | J78: 1.9 | K78: =Fiche_releve!$B$16 -> 2 | L78: 2.1 | M78: 2.08 | N78: =_xlfn.NUMBERVALUE(IF(ISBLANK(INDIRECT("Etape!J23")),#N/A,INDIRECT("Etape!J23"))) ->  | Q78: 1.92 | R78: 1.9 | S78: =Fiche_releve!$B$18 -> 2 | T78: 2.1 | U78: 2.08 | V78: =_xlfn.NUMBERVALUE(IF(ISBLANK(INDIRECT("Etape!K23")),#N/A,INDIRECT("Etape!K23"))) -> 
B79: 20.92 | C79: 20.9 | D79: =Fiche_releve!$B$12 -> 21 | E79: 21.1 | F79: 21.08 | G79: =_xlfn.NUMBERVALUE(IF(ISBLANK(INDIRECT("Etape!H24")),#N/A,INDIRECT("Etape!H24"))) ->  | I79: 1.92 | J79: 1.9 | K79: =Fiche_releve!$B$16 -> 2 | L79: 2.1 | M79: 2.08 | N79: =_xlfn.NUMBERVALUE(IF(ISBLANK(INDIRECT("Etape!J24")),#N/A,INDIRECT("Etape!J24"))) ->  | Q79: 1.92 | R79: 1.9 | S79: =Fiche_releve!$B$18 -> 2 | T79: 2.1 | U79: 2.08 | V79: =_xlfn.NUMBERVALUE(IF(ISBLANK(INDIRECT("Etape!K24")),#N/A,INDIRECT("Etape!K24"))) -> 
B80: 20.92 | C80: 20.9 | D80: =Fiche_releve!$B$12 -> 21 | E80: 21.1 | F80: 21.08 | G80: =_xlfn.NUMBERVALUE(IF(ISBLANK(INDIRECT("Etape!H25")),#N/A,INDIRECT("Etape!H25"))) ->  | I80: 1.92 | J80: 1.9 | K80: =Fiche_releve!$B$16 -> 2 | L80: 2.1 | M80: 2.08 | N80: =_xlfn.NUMBERVALUE(IF(ISBLANK(INDIRECT("Etape!J25")),#N/A,INDIRECT("Etape!J25"))) ->  | Q80: 1.92 | R80: 1.9 | S80: =Fiche_releve!$B$18 -> 2 | T80: 2.1 | U80: 2.08 | V80: =_xlfn.NUMBERVALUE(IF(ISBLANK(INDIRECT("Etape!K25")),#N/A,INDIRECT("Etape!K25"))) -> 
B81: 20.92 | C81: 20.9 | D81: =Fiche_releve!$B$12 -> 21 | E81: 21.1 | F81: 21.08 | G81: =_xlfn.NUMBERVALUE(IF(ISBLANK(INDIRECT("Etape!H26")),#N/A,INDIRECT("Etape!H26"))) ->  | I81: 1.92 | J81: 1.9 | K81: =Fiche_releve!$B$16 -> 2 | L81: 2.1 | M81: 2.08 | N81: =_xlfn.NUMBERVALUE(IF(ISBLANK(INDIRECT("Etape!J26")),#N/A,INDIRECT("Etape!J26"))) ->  | Q81: 1.92 | R81: 1.9 | S81: =Fiche_releve!$B$18 -> 2 | T81: 2.1 | U81: 2.08 | V81: =_xlfn.NUMBERVALUE(IF(ISBLANK(INDIRECT("Etape!K26")),#N/A,INDIRECT("Etape!K26"))) -> 
B82: 20.92 | C82: 20.9 | D82: =Fiche_releve!$B$12 -> 21 | E82: 21.1 | F82: 21.08 | G82: =_xlfn.NUMBERVALUE(IF(ISBLANK(INDIRECT("Etape!H27")),#N/A,INDIRECT("Etape!H27"))) ->  | I82: 1.92 | J82: 1.9 | K82: =Fiche_releve!$B$16 -> 2 | L82: 2.1 | M82: 2.08 | N82: =_xlfn.NUMBERVALUE(IF(ISBLANK(INDIRECT("Etape!J27")),#N/A,INDIRECT("Etape!J27"))) ->  | Q82: 1.92 | R82: 1.9 | S82: =Fiche_releve!$B$18 -> 2 | T82: 2.1 | U82: 2.08 | V82: =_xlfn.NUMBERVALUE(IF(ISBLANK(INDIRECT("Etape!K27")),#N/A,INDIRECT("Etape!K27"))) -> 
B83: 20.92 | C83: 20.9 | D83: =Fiche_releve!$B$12 -> 21 | E83: 21.1 | F83: 21.08 | G83: =_xlfn.NUMBERVALUE(IF(ISBLANK(INDIRECT("Etape!H28")),#N/A,INDIRECT("Etape!H28"))) ->  | I83: 1.92 | J83: 1.9 | K83: =Fiche_releve!$B$16 -> 2 | L83: 2.1 | M83: 2.08 | N83: =_xlfn.NUMBERVALUE(IF(ISBLANK(INDIRECT("Etape!J28")),#N/A,INDIRECT("Etape!J28"))) ->  | Q83: 1.92 | R83: 1.9 | S83: =Fiche_releve!$B$18 -> 2 | T83: 2.1 | U83: 2.08 | V83: =_xlfn.NUMBERVALUE(IF(ISBLANK(INDIRECT("Etape!K28")),#N/A,INDIRECT("Etape!K28"))) -> 
B84: 20.92 | C84: 20.9 | D84: =Fiche_releve!$B$12 -> 21 | E84: 21.1 | F84: 21.08 | G84: =_xlfn.NUMBERVALUE(IF(ISBLANK(INDIRECT("Etape!H29")),#N/A,INDIRECT("Etape!H29"))) ->  | I84: 1.92 | J84: 1.9 | K84: =Fiche_releve!$B$16 -> 2 | L84: 2.1 | M84: 2.08 | N84: =_xlfn.NUMBERVALUE(IF(ISBLANK(INDIRECT("Etape!J29")),#N/A,INDIRECT("Etape!J29"))) ->  | Q84: 1.92 | R84: 1.9 | S84: =Fiche_releve!$B$18 -> 2 | T84: 2.1 | U84: 2.08 | V84: =_xlfn.NUMBERVALUE(IF(ISBLANK(INDIRECT("Etape!K29")),#N/A,INDIRECT("Etape!K29"))) -> 
B85: 20.92 | C85: 20.9 | D85: =Fiche_releve!$B$12 -> 21 | E85: 21.1 | F85: 21.08 | G85: =_xlfn.NUMBERVALUE(IF(ISBLANK(INDIRECT("Etape!H30")),#N/A,INDIRECT("Etape!H30"))) ->  | I85: 1.92 | J85: 1.9 | K85: =Fiche_releve!$B$16 -> 2 | L85: 2.1 | M85: 2.08 | N85: =_xlfn.NUMBERVALUE(IF(ISBLANK(INDIRECT("Etape!J30")),#N/A,INDIRECT("Etape!J30"))) ->  | Q85: 1.92 | R85: 1.9 | S85: =Fiche_releve!$B$18 -> 2 | T85: 2.1 | U85: 2.08 | V85: =_xlfn.NUMBERVALUE(IF(ISBLANK(INDIRECT("Etape!K30")),#N/A,INDIRECT("Etape!K30"))) -> 
B86: 20.92 | C86: 20.9 | D86: =Fiche_releve!$B$12 -> 21 | E86: 21.1 | F86: 21.08 | G86: =_xlfn.NUMBERVALUE(IF(ISBLANK(INDIRECT("Etape!H31")),#N/A,INDIRECT("Etape!H31"))) ->  | I86: 1.92 | J86: 1.9 | K86: =Fiche_releve!$B$16 -> 2 | L86: 2.1 | M86: 2.08 | N86: =_xlfn.NUMBERVALUE(IF(ISBLANK(INDIRECT("Etape!J31")),#N/A,INDIRECT("Etape!J31"))) ->  | Q86: 1.92 | R86: 1.9 | S86: =Fiche_releve!$B$18 -> 2 | T86: 2.1 | U86: 2.08 | V86: =_xlfn.NUMBERVALUE(IF(ISBLANK(INDIRECT("Etape!K31")),#N/A,INDIRECT("Etape!K31"))) -> 
B87: 20.92 | C87: 20.9 | D87: =Fiche_releve!$B$12 -> 21 | E87: 21.1 | F87: 21.08 | G87: =_xlfn.NUMBERVALUE(IF(ISBLANK(INDIRECT("Etape!H32")),#N/A,INDIRECT("Etape!H32"))) ->  | I87: 1.92 | J87: 1.9 | K87: =Fiche_releve!$B$16 -> 2 | L87: 2.1 | M87: 2.08 | N87: =_xlfn.NUMBERVALUE(IF(ISBLANK(INDIRECT("Etape!J32")),#N/A,INDIRECT("Etape!J32"))) ->  | Q87: 1.92 | R87: 1.9 | S87: =Fiche_releve!$B$18 -> 2 | T87: 2.1 | U87: 2.08 | V87: =_xlfn.NUMBERVALUE(IF(ISBLANK(INDIRECT("Etape!K32")),#N/A,INDIRECT("Etape!K32"))) -> 
B88: 20.92 | C88: 20.9 | D88: =Fiche_releve!$B$12 -> 21 | E88: 21.1 | F88: 21.08 | G88: =_xlfn.NUMBERVALUE(IF(ISBLANK(INDIRECT("Etape!H33")),#N/A,INDIRECT("Etape!H33"))) ->  | I88: 1.92 | J88: 1.9 | K88: =Fiche_releve!$B$16 -> 2 | L88: 2.1 | M88: 2.08 | N88: =_xlfn.NUMBERVALUE(IF(ISBLANK(INDIRECT("Etape!J33")),#N/A,INDIRECT("Etape!J33"))) ->  | Q88: 1.92 | R88: 1.9 | S88: =Fiche_releve!$B$18 -> 2 | T88: 2.1 | U88: 2.08 | V88: =_xlfn.NUMBERVALUE(IF(ISBLANK(INDIRECT("Etape!K33")),#N/A,INDIRECT("Etape!K33"))) -> 
B89: 20.92 | C89: 20.9 | D89: =Fiche_releve!$B$12 -> 21 | E89: 21.1 | F89: 21.08 | G89: =_xlfn.NUMBERVALUE(IF(ISBLANK(INDIRECT("Etape!H34")),#N/A,INDIRECT("Etape!H34"))) ->  | I89: 1.92 | J89: 1.9 | K89: =Fiche_releve!$B$16 -> 2 | L89: 2.1 | M89: 2.08 | N89: =_xlfn.NUMBERVALUE(IF(ISBLANK(INDIRECT("Etape!J34")),#N/A,INDIRECT("Etape!J34"))) ->  | Q89: 1.92 | R89: 1.9 | S89: =Fiche_releve!$B$18 -> 2 | T89: 2.1 | U89: 2.08 | V89: =_xlfn.NUMBERVALUE(IF(ISBLANK(INDIRECT("Etape!K34")),#N/A,INDIRECT("Etape!K34"))) -> 
B90: 20.92 | C90: 20.9 | D90: =Fiche_releve!$B$12 -> 21 | E90: 21.1 | F90: 21.08 | G90: =_xlfn.NUMBERVALUE(IF(ISBLANK(INDIRECT("Etape!H35")),#N/A,INDIRECT("Etape!H35"))) ->  | I90: 1.92 | J90: 1.9 | K90: =Fiche_releve!$B$16 -> 2 | L90: 2.1 | M90: 2.08 | N90: =_xlfn.NUMBERVALUE(IF(ISBLANK(INDIRECT("Etape!J35")),#N/A,INDIRECT("Etape!J35"))) ->  | Q90: 1.92 | R90: 1.9 | S90: =Fiche_releve!$B$18 -> 2 | T90: 2.1 | U90: 2.08 | V90: =_xlfn.NUMBERVALUE(IF(ISBLANK(INDIRECT("Etape!K35")),#N/A,INDIRECT("Etape!K35"))) -> 
B91: 20.92 | C91: 20.9 | D91: =Fiche_releve!$B$12 -> 21 | E91: 21.1 | F91: 21.08 | G91: =_xlfn.NUMBERVALUE(IF(ISBLANK(INDIRECT("Etape!H36")),#N/A,INDIRECT("Etape!H36"))) ->  | I91: 1.92 | J91: 1.9 | K91: =Fiche_releve!$B$16 -> 2 | L91: 2.1 | M91: 2.08 | N91: =_xlfn.NUMBERVALUE(IF(ISBLANK(INDIRECT("Etape!J36")),#N/A,INDIRECT("Etape!J36"))) ->  | Q91: 1.92 | R91: 1.9 | S91: =Fiche_releve!$B$18 -> 2 | T91: 2.1 | U91: 2.08 | V91: =_xlfn.NUMBERVALUE(IF(ISBLANK(INDIRECT("Etape!K36")),#N/A,INDIRECT("Etape!K36"))) -> 
B92: 20.92 | C92: 20.9 | D92: =Fiche_releve!$B$12 -> 21 | E92: 21.1 | F92: 21.08 | G92: =_xlfn.NUMBERVALUE(IF(ISBLANK(INDIRECT("Etape!H37")),#N/A,INDIRECT("Etape!H37"))) ->  | I92: 1.92 | J92: 1.9 | K92: =Fiche_releve!$B$16 -> 2 | L92: 2.1 | M92: 2.08 | N92: =_xlfn.NUMBERVALUE(IF(ISBLANK(INDIRECT("Etape!J37")),#N/A,INDIRECT("Etape!J37"))) ->  | Q92: 1.92 | R92: 1.9 | S92: =Fiche_releve!$B$18 -> 2 | T92: 2.1 | U92: 2.08 | V92: =_xlfn.NUMBERVALUE(IF(ISBLANK(INDIRECT("Etape!K37")),#N/A,INDIRECT("Etape!K37"))) -> 
B93: 20.92 | C93: 20.9 | D93: =Fiche_releve!$B$12 -> 21 | E93: 21.1 | F93: 21.08 | G93: =_xlfn.NUMBERVALUE(IF(ISBLANK(INDIRECT("Etape!H38")),#N/A,INDIRECT("Etape!H38"))) ->  | I93: 1.92 | J93: 1.9 | K93: =Fiche_releve!$B$16 -> 2 | L93: 2.1 | M93: 2.08 | N93: =_xlfn.NUMBERVALUE(IF(ISBLANK(INDIRECT("Etape!J38")),#N/A,INDIRECT("Etape!J38"))) ->  | Q93: 1.92 | R93: 1.9 | S93: =Fiche_releve!$B$18 -> 2 | T93: 2.1 | U93: 2.08 | V93: =_xlfn.NUMBERVALUE(IF(ISBLANK(INDIRECT("Etape!K38")),#N/A,INDIRECT("Etape!K38"))) -> 
B94: 20.92 | C94: 20.9 | D94: =Fiche_releve!$B$12 -> 21 | E94: 21.1 | F94: 21.08 | G94: =_xlfn.NUMBERVALUE(IF(ISBLANK(INDIRECT("Etape!H39")),#N/A,INDIRECT("Etape!H39"))) ->  | I94: 1.92 | J94: 1.9 | K94: =Fiche_releve!$B$16 -> 2 | L94: 2.1 | M94: 2.08 | N94: =_xlfn.NUMBERVALUE(IF(ISBLANK(INDIRECT("Etape!J39")),#N/A,INDIRECT("Etape!J39"))) ->  | Q94: 1.92 | R94: 1.9 | S94: =Fiche_releve!$B$18 -> 2 | T94: 2.1 | U94: 2.08 | V94: =_xlfn.NUMBERVALUE(IF(ISBLANK(INDIRECT("Etape!K39")),#N/A,INDIRECT("Etape!K39"))) -> 
B95: 20.92 | C95: 20.9 | D95: =Fiche_releve!$B$12 -> 21 | E95: 21.1 | F95: 21.08 | G95: =_xlfn.NUMBERVALUE(IF(ISBLANK(INDIRECT("Etape!H40")),#N/A,INDIRECT("Etape!H40"))) ->  | I95: 1.92 | J95: 1.9 | K95: =Fiche_releve!$B$16 -> 2 | L95: 2.1 | M95: 2.08 | N95: =_xlfn.NUMBERVALUE(IF(ISBLANK(INDIRECT("Etape!J40")),#N/A,INDIRECT("Etape!J40"))) ->  | Q95: 1.92 | R95: 1.9 | S95: =Fiche_releve!$B$18 -> 2 | T95: 2.1 | U95: 2.08 | V95: =_xlfn.NUMBERVALUE(IF(ISBLANK(INDIRECT("Etape!K40")),#N/A,INDIRECT("Etape!K40"))) -> 
B96: 20.92 | C96: 20.9 | D96: =Fiche_releve!$B$12 -> 21 | E96: 21.1 | F96: 21.08 | G96: =_xlfn.NUMBERVALUE(IF(ISBLANK(INDIRECT("Etape!H41")),#N/A,INDIRECT("Etape!H41"))) ->  | I96: 1.92 | J96: 1.9 | K96: =Fiche_releve!$B$16 -> 2 | L96: 2.1 | M96: 2.08 | N96: =_xlfn.NUMBERVALUE(IF(ISBLANK(INDIRECT("Etape!J41")),#N/A,INDIRECT("Etape!J41"))) ->  | Q96: 1.92 | R96: 1.9 | S96: =Fiche_releve!$B$18 -> 2 | T96: 2.1 | U96: 2.08 | V96: =_xlfn.NUMBERVALUE(IF(ISBLANK(INDIRECT("Etape!K41")),#N/A,INDIRECT("Etape!K41"))) -> 
B97: 20.92 | C97: 20.9 | D97: =Fiche_releve!$B$12 -> 21 | E97: 21.1 | F97: 21.08 | G97: =_xlfn.NUMBERVALUE(IF(ISBLANK(INDIRECT("Etape!H42")),#N/A,INDIRECT("Etape!H42"))) ->  | I97: 1.92 | J97: 1.9 | K97: =Fiche_releve!$B$16 -> 2 | L97: 2.1 | M97: 2.08 | N97: =_xlfn.NUMBERVALUE(IF(ISBLANK(INDIRECT("Etape!J42")),#N/A,INDIRECT("Etape!J42"))) ->  | Q97: 1.92 | R97: 1.9 | S97: =Fiche_releve!$B$18 -> 2 | T97: 2.1 | U97: 2.08 | V97: =_xlfn.NUMBERVALUE(IF(ISBLANK(INDIRECT("Etape!K42")),#N/A,INDIRECT("Etape!K42"))) -> 
B98: 20.92 | C98: 20.9 | D98: =Fiche_releve!$B$12 -> 21 | E98: 21.1 | F98: 21.08 | G98: =_xlfn.NUMBERVALUE(IF(ISBLANK(INDIRECT("Etape!H43")),#N/A,INDIRECT("Etape!H43"))) ->  | I98: 1.92 | J98: 1.9 | K98: =Fiche_releve!$B$16 -> 2 | L98: 2.1 | M98: 2.08 | N98: =_xlfn.NUMBERVALUE(IF(ISBLANK(INDIRECT("Etape!J43")),#N/A,INDIRECT("Etape!J43"))) ->  | Q98: 1.92 | R98: 1.9 | S98: =Fiche_releve!$B$18 -> 2 | T98: 2.1 | U98: 2.08 | V98: =_xlfn.NUMBERVALUE(IF(ISBLANK(INDIRECT("Etape!K43")),#N/A,INDIRECT("Etape!K43"))) -> 
B99: 20.92 | C99: 20.9 | D99: =Fiche_releve!$B$12 -> 21 | E99: 21.1 | F99: 21.08 | G99: =_xlfn.NUMBERVALUE(IF(ISBLANK(INDIRECT("Etape!H44")),#N/A,INDIRECT("Etape!H44"))) ->  | I99: 1.92 | J99: 1.9 | K99: =Fiche_releve!$B$16 -> 2 | L99: 2.1 | M99: 2.08 | N99: =_xlfn.NUMBERVALUE(IF(ISBLANK(INDIRECT("Etape!J44")),#N/A,INDIRECT("Etape!J44"))) ->  | Q99: 1.92 | R99: 1.9 | S99: =Fiche_releve!$B$18 -> 2 | T99: 2.1 | U99: 2.08 | V99: =_xlfn.NUMBERVALUE(IF(ISBLANK(INDIRECT("Etape!K44")),#N/A,INDIRECT("Etape!K44"))) -> 
B100: 20.92 | C100: 20.9 | D100: =Fiche_releve!$B$12 -> 21 | E100: 21.1 | F100: 21.08 | G100: =_xlfn.NUMBERVALUE(IF(ISBLANK(INDIRECT("Etape!H45")),#N/A,INDIRECT("Etape!H45"))) ->  | I100: 1.92 | J100: 1.9 | K100: =Fiche_releve!$B$16 -> 2 | L100: 2.1 | M100: 2.08 | N100: =_xlfn.NUMBERVALUE(IF(ISBLANK(INDIRECT("Etape!J45")),#N/A,INDIRECT("Etape!J45"))) ->  | Q100: 1.92 | R100: 1.9 | S100: =Fiche_releve!$B$18 -> 2 | T100: 2.1 | U100: 2.08 | V100: =_xlfn.NUMBERVALUE(IF(ISBLANK(INDIRECT("Etape!K45")),#N/A,INDIRECT("Etape!K45"))) -> 
B101: 20.92 | C101: 20.9 | D101: =Fiche_releve!$B$12 -> 21 | E101: 21.1 | F101: 21.08 | G101: =_xlfn.NUMBERVALUE(IF(ISBLANK(INDIRECT("Etape!H46")),#N/A,INDIRECT("Etape!H46"))) ->  | I101: 1.92 | J101: 1.9 | K101: =Fiche_releve!$B$16 -> 2 | L101: 2.1 | M101: 2.08 | N101: =_xlfn.NUMBERVALUE(IF(ISBLANK(INDIRECT("Etape!J46")),#N/A,INDIRECT("Etape!J46"))) ->  | Q101: 1.92 | R101: 1.9 | S101: =Fiche_releve!$B$18 -> 2 | T101: 2.1 | U101: 2.08 | V101: =_xlfn.NUMBERVALUE(IF(ISBLANK(INDIRECT("Etape!K46")),#N/A,INDIRECT("Etape!K46"))) -> 
B102: 20.92 | C102: 20.9 | D102: =Fiche_releve!$B$12 -> 21 | E102: 21.1 | F102: 21.08 | G102: =_xlfn.NUMBERVALUE(IF(ISBLANK(INDIRECT("Etape!H47")),#N/A,INDIRECT("Etape!H47"))) ->  | I102: 1.92 | J102: 1.9 | K102: =Fiche_releve!$B$16 -> 2 | L102: 2.1 | M102: 2.08 | N102: =_xlfn.NUMBERVALUE(IF(ISBLANK(INDIRECT("Etape!J47")),#N/A,INDIRECT("Etape!J47"))) ->  | Q102: 1.92 | R102: 1.9 | S102: =Fiche_releve!$B$18 -> 2 | T102: 2.1 | U102: 2.08 | V102: =_xlfn.NUMBERVALUE(IF(ISBLANK(INDIRECT("Etape!K47")),#N/A,INDIRECT("Etape!K47"))) -> 
B103: 20.92 | C103: 20.9 | D103: =Fiche_releve!$B$12 -> 21 | E103: 21.1 | F103: 21.08 | G103: =_xlfn.NUMBERVALUE(IF(ISBLANK(INDIRECT("Etape!H48")),#N/A,INDIRECT("Etape!H48"))) ->  | I103: 1.92 | J103: 1.9 | K103: =Fiche_releve!$B$16 -> 2 | L103: 2.1 | M103: 2.08 | N103: =_xlfn.NUMBERVALUE(IF(ISBLANK(INDIRECT("Etape!J48")),#N/A,INDIRECT("Etape!J48"))) ->  | Q103: 1.92 | R103: 1.9 | S103: =Fiche_releve!$B$18 -> 2 | T103: 2.1 | U103: 2.08 | V103: =_xlfn.NUMBERVALUE(IF(ISBLANK(INDIRECT("Etape!K48")),#N/A,INDIRECT("Etape!K48"))) -> 
B104: 20.92 | C104: 20.9 | D104: =Fiche_releve!$B$12 -> 21 | E104: 21.1 | F104: 21.08 | G104: =_xlfn.NUMBERVALUE(IF(ISBLANK(INDIRECT("Etape!H49")),#N/A,INDIRECT("Etape!H49"))) ->  | I104: 1.92 | J104: 1.9 | K104: =Fiche_releve!$B$16 -> 2 | L104: 2.1 | M104: 2.08 | N104: =_xlfn.NUMBERVALUE(IF(ISBLANK(INDIRECT("Etape!J49")),#N/A,INDIRECT("Etape!J49"))) ->  | Q104: 1.92 | R104: 1.9 | S104: =Fiche_releve!$B$18 -> 2 | T104: 2.1 | U104: 2.08 | V104: =_xlfn.NUMBERVALUE(IF(ISBLANK(INDIRECT("Etape!K49")),#N/A,INDIRECT("Etape!K49"))) -> 
B105: 20.92 | C105: 20.9 | D105: =Fiche_releve!$B$12 -> 21 | E105: 21.1 | F105: 21.08 | G105: =_xlfn.NUMBERVALUE(IF(ISBLANK(INDIRECT("Etape!H50")),#N/A,INDIRECT("Etape!H50"))) ->  | I105: 1.92 | J105: 1.9 | K105: =Fiche_releve!$B$16 -> 2 | L105: 2.1 | M105: 2.08 | N105: =_xlfn.NUMBERVALUE(IF(ISBLANK(INDIRECT("Etape!J50")),#N/A,INDIRECT("Etape!J50"))) ->  | Q105: 1.92 | R105: 1.9 | S105: =Fiche_releve!$B$18 -> 2 | T105: 2.1 | U105: 2.08 | V105: =_xlfn.NUMBERVALUE(IF(ISBLANK(INDIRECT("Etape!K50")),#N/A,INDIRECT("Etape!K50"))) -> 
B106: 20.92 | C106: 20.9 | D106: =Fiche_releve!$B$12 -> 21 | E106: 21.1 | F106: 21.08 | G106: =_xlfn.NUMBERVALUE(IF(ISBLANK(INDIRECT("Etape!H51")),#N/A,INDIRECT("Etape!H51"))) ->  | I106: 1.92 | J106: 1.9 | K106: =Fiche_releve!$B$16 -> 2 | L106: 2.1 | M106: 2.08 | N106: =_xlfn.NUMBERVALUE(IF(ISBLANK(INDIRECT("Etape!J51")),#N/A,INDIRECT("Etape!J51"))) ->  | Q106: 1.92 | R106: 1.9 | S106: =Fiche_releve!$B$18 -> 2 | T106: 2.1 | U106: 2.08 | V106: =_xlfn.NUMBERVALUE(IF(ISBLANK(INDIRECT("Etape!K51")),#N/A,INDIRECT("Etape!K51"))) -> 
C108: Repère 8 | G108: Valeurs relevées | J108: Repère 9 | N108: Valeurs relevées
B109: - | C109: IT- | D109: Cote nominale | E109: IT+ | F109: + | I109: - | J109: IT- | K109: Cote nominale | L109: IT+ | M109: +
B110: =C110+0.02 -> 12.92 | C110: =D110-0.1 -> 12.9 | D110: =Fiche_releve!$B$20 -> 13 | E110: =D110+0.1 -> 13.1 | F110: =E110-0.02 -> 13.08 | G110: =_xlfn.NUMBERVALUE(IF(ISBLANK(INDIRECT("Etape!L2")),#N/A,INDIRECT("Etape!L2"))) -> 13 | I110: =J110+0.02 -> 29.82 | J110: =K110-0.2 -> 29.8 | K110: =Fiche_releve!$B$22 -> 30 | L110: =K110+0.2 -> 30.2 | M110: =L110-0.02 -> 30.18 | N110: =_xlfn.NUMBERVALUE(IF(ISBLANK(INDIRECT("Etape!M2")),#N/A,INDIRECT("Etape!M2"))) -> 30
B111: =C111+0.02 -> 12.92 | C111: =D111-0.1 -> 12.9 | D111: =Fiche_releve!$B$20 -> 13 | E111: =D111+0.1 -> 13.1 | F111: =E111-0.02 -> 13.08 | G111: =_xlfn.NUMBERVALUE(IF(ISBLANK(INDIRECT("Etape!L3")),#N/A,INDIRECT("Etape!L3"))) ->  | I111: =J111+0.02 -> 29.82 | J111: =K111-0.2 -> 29.8 | K111: =Fiche_releve!$B$22 -> 30 | L111: =K111+0.2 -> 30.2 | M111: =L111-0.02 -> 30.18 | N111: =_xlfn.NUMBERVALUE(IF(ISBLANK(INDIRECT("Etape!M3")),#N/A,INDIRECT("Etape!M3"))) -> 
B112: 12.92 | C112: 12.9 | D112: =Fiche_releve!$B$20 -> 13 | E112: 13.1 | F112: 13.08 | G112: =_xlfn.NUMBERVALUE(IF(ISBLANK(INDIRECT("Etape!L4")),#N/A,INDIRECT("Etape!L4"))) ->  | I112: 29.82 | J112: 29.8 | K112: =Fiche_releve!$B$22 -> 30 | L112: 30.2 | M112: 30.18 | N112: =_xlfn.NUMBERVALUE(IF(ISBLANK(INDIRECT("Etape!M4")),#N/A,INDIRECT("Etape!M4"))) -> 
B113: 12.92 | C113: 12.9 | D113: =Fiche_releve!$B$20 -> 13 | E113: 13.1 | F113: 13.08 | G113: =_xlfn.NUMBERVALUE(IF(ISBLANK(INDIRECT("Etape!L5")),#N/A,INDIRECT("Etape!L5"))) ->  | I113: 29.82 | J113: 29.8 | K113: =Fiche_releve!$B$22 -> 30 | L113: 30.2 | M113: 30.18 | N113: =_xlfn.NUMBERVALUE(IF(ISBLANK(INDIRECT("Etape!M5")),#N/A,INDIRECT("Etape!M5"))) -> 
B114: 12.92 | C114: 12.9 | D114: =Fiche_releve!$B$20 -> 13 | E114: 13.1 | F114: 13.08 | G114: =_xlfn.NUMBERVALUE(IF(ISBLANK(INDIRECT("Etape!L6")),#N/A,INDIRECT("Etape!L6"))) -> 14 | I114: 29.82 | J114: 29.8 | K114: =Fiche_releve!$B$22 -> 30 | L114: 30.2 | M114: 30.18 | N114: =_xlfn.NUMBERVALUE(IF(ISBLANK(INDIRECT("Etape!M6")),#N/A,INDIRECT("Etape!M6"))) -> 30.1
B115: 12.92 | C115: 12.9 | D115: =Fiche_releve!$B$20 -> 13 | E115: 13.1 | F115: 13.08 | G115: =_xlfn.NUMBERVALUE(IF(ISBLANK(INDIRECT("Etape!L7")),#N/A,INDIRECT("Etape!L7"))) ->  | I115: 29.82 | J115: 29.8 | K115: =Fiche_releve!$B$22 -> 30 | L115: 30.2 | M115: 30.18 | N115: =_xlfn.NUMBERVALUE(IF(ISBLANK(INDIRECT("Etape!M7")),#N/A,INDIRECT("Etape!M7"))) -> 
B116: 12.92 | C116: 12.9 | D116: =Fiche_releve!$B$20 -> 13 | E116: 13.1 | F116: 13.08 | G116: =_xlfn.NUMBERVALUE(IF(ISBLANK(INDIRECT("Etape!L8")),#N/A,INDIRECT("Etape!L8"))) ->  | I116: 29.82 | J116: 29.8 | K116: =Fiche_releve!$B$22 -> 30 | L116: 30.2 | M116: 30.18 | N116: =_xlfn.NUMBERVALUE(IF(ISBLANK(INDIRECT("Etape!M8")),#N/A,INDIRECT("Etape!M8"))) -> 
B117: 12.92 | C117: 12.9 | D117: =Fiche_releve!$B$20 -> 13 | E117: 13.1 | F117: 13.08 | G117: =_xlfn.NUMBERVALUE(IF(ISBLANK(INDIRECT("Etape!L9")),#N/A,INDIRECT("Etape!L9"))) ->  | I117: 29.82 | J117: 29.8 | K117: =Fiche_releve!$B$22 -> 30 | L117: 30.2 | M117: 30.18 | N117: =_xlfn.NUMBERVALUE(IF(ISBLANK(INDIRECT("Etape!M9")),#N/A,INDIRECT("Etape!M9"))) -> 
B118: 12.92 | C118: 12.9 | D118: =Fiche_releve!$B$20 -> 13 | E118: 13.1 | F118: 13.08 | G118: =_xlfn.NUMBERVALUE(IF(ISBLANK(INDIRECT("Etape!L10")),#N/A,INDIRECT("Etape!L10"))) -> 13 | I118: 29.82 | J118: 29.8 | K118: =Fiche_releve!$B$22 -> 30 | L118: 30.2 | M118: 30.18 | N118: =_xlfn.NUMBERVALUE(IF(ISBLANK(INDIRECT("Etape!M10")),#N/A,INDIRECT("Etape!M10"))) -> 30.9
B119: 12.92 | C119: 12.9 | D119: =Fiche_releve!$B$20 -> 13 | E119: 13.1 | F119: 13.08 | G119: =_xlfn.NUMBERVALUE(IF(ISBLANK(INDIRECT("Etape!L11")),#N/A,INDIRECT("Etape!L11"))) ->  | I119: 29.82 | J119: 29.8 | K119: =Fiche_releve!$B$22 -> 30 | L119: 30.2 | M119: 30.18 | N119: =_xlfn.NUMBERVALUE(IF(ISBLANK(INDIRECT("Etape!M11")),#N/A,INDIRECT("Etape!M11"))) -> 
B120: 12.92 | C120: 12.9 | D120: =Fiche_releve!$B$20 -> 13 | E120: 13.1 | F120: 13.08 | G120: =_xlfn.NUMBERVALUE(IF(ISBLANK(INDIRECT("Etape!L12")),#N/A,INDIRECT("Etape!L12"))) ->  | I120: 29.82 | J120: 29.8 | K120: =Fiche_releve!$B$22 -> 30 | L120: 30.2 | M120: 30.18 | N120: =_xlfn.NUMBERVALUE(IF(ISBLANK(INDIRECT("Etape!M12")),#N/A,INDIRECT("Etape!M12"))) -> 
B121: 12.92 | C121: 12.9 | D121: =Fiche_releve!$B$20 -> 13 | E121: 13.1 | F121: 13.08 | G121: =_xlfn.NUMBERVALUE(IF(ISBLANK(INDIRECT("Etape!L13")),#N/A,INDIRECT("Etape!L13"))) -> 13.02 | I121: 29.82 | J121: 29.8 | K121: =Fiche_releve!$B$22 -> 30 | L121: 30.2 | M121: 30.18 | N121: =_xlfn.NUMBERVALUE(IF(ISBLANK(INDIRECT("Etape!M13")),#N/A,INDIRECT("Etape!M13"))) -> 30.19
B122: =C122+0.02 -> 12.92 | C122: =D122-0.1 -> 12.9 | D122: =Fiche_releve!$B$20 -> 13 | E122: =D122+0.1 -> 13.1 | F122: =E122-0.02 -> 13.08 | G122: =_xlfn.NUMBERVALUE(IF(ISBLANK(INDIRECT("Etape!L14")),#N/A,INDIRECT("Etape!L14"))) ->  | I122: =J122+0.02 -> 29.82 | J122: 29.8 | K122: =Fiche_releve!$B$22 -> 30 | L122: 30.2 | M122: =L122-0.02 -> 30.18 | N122: =_xlfn.NUMBERVALUE(IF(ISBLANK(INDIRECT("Etape!M14")),#N/A,INDIRECT("Etape!M14"))) -> 
B123: 12.92 | C123: 12.9 | D123: =Fiche_releve!$B$20 -> 13 | E123: 13.1 | F123: 13.08 | G123: =_xlfn.NUMBERVALUE(IF(ISBLANK(INDIRECT("Etape!L15")),#N/A,INDIRECT("Etape!L15"))) -> 13.09 | I123: 29.82 | J123: 29.8 | K123: =Fiche_releve!$B$22 -> 30 | L123: 30.2 | M123: 30.18 | N123: =_xlfn.NUMBERVALUE(IF(ISBLANK(INDIRECT("Etape!M15")),#N/A,INDIRECT("Etape!M15"))) -> 
B124: 12.92 | C124: 12.9 | D124: =Fiche_releve!$B$20 -> 13 | E124: 13.1 | F124: 13.08 | G124: =_xlfn.NUMBERVALUE(IF(ISBLANK(INDIRECT("Etape!L16")),#N/A,INDIRECT("Etape!L16"))) ->  | I124: 29.82 | J124: 29.8 | K124: =Fiche_releve!$B$22 -> 30 | L124: 30.2 | M124: 30.18 | N124: =_xlfn.NUMBERVALUE(IF(ISBLANK(INDIRECT("Etape!M16")),#N/A,INDIRECT("Etape!M16"))) -> 
B125: 12.92 | C125: 12.9 | D125: =Fiche_releve!$B$20 -> 13 | E125: 13.1 | F125: 13.08 | G125: =_xlfn.NUMBERVALUE(IF(ISBLANK(INDIRECT("Etape!L17")),#N/A,INDIRECT("Etape!L17"))) ->  | I125: 29.82 | J125: 29.8 | K125: =Fiche_releve!$B$22 -> 30 | L125: 30.2 | M125: 30.18 | N125: =_xlfn.NUMBERVALUE(IF(ISBLANK(INDIRECT("Etape!M17")),#N/A,INDIRECT("Etape!M17"))) -> 
B126: 12.92 | C126: 12.9 | D126: =Fiche_releve!$B$20 -> 13 | E126: 13.1 | F126: 13.08 | G126: =_xlfn.NUMBERVALUE(IF(ISBLANK(INDIRECT("Etape!L18")),#N/A,INDIRECT("Etape!L18"))) ->  | I126: 29.82 | J126: 29.8 | K126: =Fiche_releve!$B$22 -> 30 | L126: 30.2 | M126: 30.18 | N126: =_xlfn.NUMBERVALUE(IF(ISBLANK(INDIRECT("Etape!M18")),#N/A,INDIRECT("Etape!M18"))) -> 
B127: 12.92 | C127: 12.9 | D127: =Fiche_releve!$B$20 -> 13 | E127: 13.1 | F127: 13.08 | G127: =_xlfn.NUMBERVALUE(IF(ISBLANK(INDIRECT("Etape!L19")),#N/A,INDIRECT("Etape!L19"))) ->  | I127: 29.82 | J127: 29.8 | K127: =Fiche_releve!$B$22 -> 30 | L127: 30.2 | M127: 30.18 | N127: =_xlfn.NUMBERVALUE(IF(ISBLANK(INDIRECT("Etape!M19")),#N/A,INDIRECT("Etape!M19"))) -> 
B128: 12.92 | C128: 12.9 | D128: =Fiche_releve!$B$20 -> 13 | E128: 13.1 | F128: 13.08 | G128: =_xlfn.NUMBERVALUE(IF(ISBLANK(INDIRECT("Etape!L20")),#N/A,INDIRECT("Etape!L20"))) ->  | I128: 29.82 | J128: 29.8 | K128: =Fiche_releve!$B$22 -> 30 | L128: 30.2 | M128: 30.18 | N128: =_xlfn.NUMBERVALUE(IF(ISBLANK(INDIRECT("Etape!M20")),#N/A,INDIRECT("Etape!M20"))) -> 
B129: 12.92 | C129: 12.9 | D129: =Fiche_releve!$B$20 -> 13 | E129: 13.1 | F129: 13.08 | G129: =_xlfn.NUMBERVALUE(IF(ISBLANK(INDIRECT("Etape!L21")),#N/A,INDIRECT("Etape!L21"))) ->  | I129: 29.82 | J129: 29.8 | K129: =Fiche_releve!$B$22 -> 30 | L129: 30.2 | M129: 30.18 | N129: =_xlfn.NUMBERVALUE(IF(ISBLANK(INDIRECT("Etape!M21")),#N/A,INDIRECT("Etape!M21"))) -> 
B130: 12.92 | C130: 12.9 | D130: =Fiche_releve!$B$20 -> 13 | E130: 13.1 | F130: 13.08 | G130: =_xlfn.NUMBERVALUE(IF(ISBLANK(INDIRECT("Etape!L22")),#N/A,INDIRECT("Etape!L22"))) ->  | I130: 29.82 | J130: 29.8 | K130: =Fiche_releve!$B$22 -> 30 | L130: 30.2 | M130: 30.18 | N130: =_xlfn.NUMBERVALUE(IF(ISBLANK(INDIRECT("Etape!M22")),#N/A,INDIRECT("Etape!M22"))) -> 
B131: 12.92 | C131: 12.9 | D131: =Fiche_releve!$B$20 -> 13 | E131: 13.1 | F131: 13.08 | G131: =_xlfn.NUMBERVALUE(IF(ISBLANK(INDIRECT("Etape!L23")),#N/A,INDIRECT("Etape!L23"))) ->  | I131: 29.82 | J131: 29.8 | K131: =Fiche_releve!$B$22 -> 30 | L131: 30.2 | M131: 30.18 | N131: =_xlfn.NUMBERVALUE(IF(ISBLANK(INDIRECT("Etape!M23")),#N/A,INDIRECT("Etape!M23"))) -> 
B132: 12.92 | C132: 12.9 | D132: =Fiche_releve!$B$20 -> 13 | E132: 13.1 | F132: 13.08 | G132: =_xlfn.NUMBERVALUE(IF(ISBLANK(INDIRECT("Etape!L24")),#N/A,INDIRECT("Etape!L24"))) ->  | I132: 29.82 | J132: 29.8 | K132: =Fiche_releve!$B$22 -> 30 | L132: 30.2 | M132: 30.18 | N132: =_xlfn.NUMBERVALUE(IF(ISBLANK(INDIRECT("Etape!M24")),#N/A,INDIRECT("Etape!M24"))) -> 
B133: 12.92 | C133: 12.9 | D133: =Fiche_releve!$B$20 -> 13 | E133: 13.1 | F133: 13.08 | G133: =_xlfn.NUMBERVALUE(IF(ISBLANK(INDIRECT("Etape!L25")),#N/A,INDIRECT("Etape!L25"))) ->  | I133: 29.82 | J133: 29.8 | K133: =Fiche_releve!$B$22 -> 30 | L133: 30.2 | M133: 30.18 | N133: =_xlfn.NUMBERVALUE(IF(ISBLANK(INDIRECT("Etape!M25")),#N/A,INDIRECT("Etape!M25"))) -> 
B134: 12.92 | C134: 12.9 | D134: =Fiche_releve!$B$20 -> 13 | E134: 13.1 | F134: 13.08 | G134: =_xlfn.NUMBERVALUE(IF(ISBLANK(INDIRECT("Etape!L26")),#N/A,INDIRECT("Etape!L26"))) ->  | I134: 29.82 | J134: 29.8 | K134: =Fiche_releve!$B$22 -> 30 | L134: 30.2 | M134: 30.18 | N134: =_xlfn.NUMBERVALUE(IF(ISBLANK(INDIRECT("Etape!M26")),#N/A,INDIRECT("Etape!M26"))) -> 
B135: 12.92 | C135: 12.9 | D135: =Fiche_releve!$B$20 -> 13 | E135: 13.1 | F135: 13.08 | G135: =_xlfn.NUMBERVALUE(IF(ISBLANK(INDIRECT("Etape!L27")),#N/A,INDIRECT("Etape!L27"))) ->  | I135: 29.82 | J135: 29.8 | K135: =Fiche_releve!$B$22 -> 30 | L135: 30.2 | M135: 30.18 | N135: =_xlfn.NUMBERVALUE(IF(ISBLANK(INDIRECT("Etape!M27")),#N/A,INDIRECT("Etape!M27"))) -> 
B136: 12.92 | C136: 12.9 | D136: =Fiche_releve!$B$20 -> 13 | E136: 13.1 | F136: 13.08 | G136: =_xlfn.NUMBERVALUE(IF(ISBLANK(INDIRECT("Etape!L28")),#N/A,INDIRECT("Etape!L28"))) ->  | I136: 29.82 | J136: 29.8 | K136: =Fiche_releve!$B$22 -> 30 | L136: 30.2 | M136: 30.18 | N136: =_xlfn.NUMBERVALUE(IF(ISBLANK(INDIRECT("Etape!M28")),#N/A,INDIRECT("Etape!M28"))) -> 
B137: 12.92 | C137: 12.9 | D137: =Fiche_releve!$B$20 -> 13 | E137: 13.1 | F137: 13.08 | G137: =_xlfn.NUMBERVALUE(IF(ISBLANK(INDIRECT("Etape!L29")),#N/A,INDIRECT("Etape!L29"))) ->  | I137: 29.82 | J137: 29.8 | K137: =Fiche_releve!$B$22 -> 30 | L137: 30.2 | M137: 30.18 | N137: =_xlfn.NUMBERVALUE(IF(ISBLANK(INDIRECT("Etape!M29")),#N/A,INDIRECT("Etape!M29"))) -> 
B138: 12.92 | C138: 12.9 | D138: =Fiche_releve!$B$20 -> 13 | E138: 13.1 | F138: 13.08 | G138: =_xlfn.NUMBERVALUE(IF(ISBLANK(INDIRECT("Etape!L30")),#N/A,INDIRECT("Etape!L30"))) ->  | I138: 29.82 | J138: 29.8 | K138: =Fiche_releve!$B$22 -> 30 | L138: 30.2 | M138: 30.18 | N138: =_xlfn.NUMBERVALUE(IF(ISBLANK(INDIRECT("Etape!M30")),#N/A,INDIRECT("Etape!M30"))) -> 
B139: 12.92 | C139: 12.9 | D139: =Fiche_releve!$B$20 -> 13 | E139: 13.1 | F139: 13.08 | G139: =_xlfn.NUMBERVALUE(IF(ISBLANK(INDIRECT("Etape!L31")),#N/A,INDIRECT("Etape!L31"))) ->  | I139: 29.82 | J139: 29.8 | K139: =Fiche_releve!$B$22 -> 30 | L139: 30.2 | M139: 30.18 | N139: =_xlfn.NUMBERVALUE(IF(ISBLANK(INDIRECT("Etape!M31")),#N/A,INDIRECT("Etape!M31"))) -> 
B140: 12.92 | C140: 12.9 | D140: =Fiche_releve!$B$20 -> 13 | E140: 13.1 | F140: 13.08 | G140: =_xlfn.NUMBERVALUE(IF(ISBLANK(INDIRECT("Etape!L32")),#N/A,INDIRECT("Etape!L32"))) ->  | I140: 29.82 | J140: 29.8 | K140: =Fiche_releve!$B$22 -> 30 | L140: 30.2 | M140: 30.18 | N140: =_xlfn.NUMBERVALUE(IF(ISBLANK(INDIRECT("Etape!M32")),#N/A,INDIRECT("Etape!M32"))) -> 
B141: 12.92 | C141: 12.9 | D141: =Fiche_releve!$B$20 -> 13 | E141: 13.1 | F141: 13.08 | G141: =_xlfn.NUMBERVALUE(IF(ISBLANK(INDIRECT("Etape!L33")),#N/A,INDIRECT("Etape!L33"))) ->  | I141: 29.82 | J141: 29.8 | K141: =Fiche_releve!$B$22 -> 30 | L141: 30.2 | M141: 30.18 | N141: =_xlfn.NUMBERVALUE(IF(ISBLANK(INDIRECT("Etape!M33")),#N/A,INDIRECT("Etape!M33"))) -> 
B142: 12.92 | C142: 12.9 | D142: =Fiche_releve!$B$20 -> 13 | E142: 13.1 | F142: 13.08 | G142: =_xlfn.NUMBERVALUE(IF(ISBLANK(INDIRECT("Etape!L34")),#N/A,INDIRECT("Etape!L34"))) ->  | I142: 29.82 | J142: 29.8 | K142: =Fiche_releve!$B$22 -> 30 | L142: 30.2 | M142: 30.18 | N142: =_xlfn.NUMBERVALUE(IF(ISBLANK(INDIRECT("Etape!M34")),#N/A,INDIRECT("Etape!M34"))) -> 
B143: 12.92 | C143: 12.9 | D143: =Fiche_releve!$B$20 -> 13 | E143: 13.1 | F143: 13.08 | G143: =_xlfn.NUMBERVALUE(IF(ISBLANK(INDIRECT("Etape!L35")),#N/A,INDIRECT("Etape!L35"))) ->  | I143: 29.82 | J143: 29.8 | K143: =Fiche_releve!$B$22 -> 30 | L143: 30.2 | M143: 30.18 | N143: =_xlfn.NUMBERVALUE(IF(ISBLANK(INDIRECT("Etape!M35")),#N/A,INDIRECT("Etape!M35"))) -> 
B144: 12.92 | C144: 12.9 | D144: =Fiche_releve!$B$20 -> 13 | E144: 13.1 | F144: 13.08 | G144: =_xlfn.NUMBERVALUE(IF(ISBLANK(INDIRECT("Etape!L36")),#N/A,INDIRECT("Etape!L36"))) ->  | I144: 29.82 | J144: 29.8 | K144: =Fiche_releve!$B$22 -> 30 | L144: 30.2 | M144: 30.18 | N144: =_xlfn.NUMBERVALUE(IF(ISBLANK(INDIRECT("Etape!M36")),#N/A,INDIRECT("Etape!M36"))) -> 
B145: 12.92 | C145: 12.9 | D145: =Fiche_releve!$B$20 -> 13 | E145: 13.1 | F145: 13.08 | G145: =_xlfn.NUMBERVALUE(IF(ISBLANK(INDIRECT("Etape!L37")),#N/A,INDIRECT("Etape!L37"))) ->  | I145: 29.82 | J145: 29.8 | K145: =Fiche_releve!$B$22 -> 30 | L145: 30.2 | M145: 30.18 | N145: =_xlfn.NUMBERVALUE(IF(ISBLANK(INDIRECT("Etape!M37")),#N/A,INDIRECT("Etape!M37"))) -> 
B146: 12.92 | C146: 12.9 | D146: =Fiche_releve!$B$20 -> 13 | E146: 13.1 | F146: 13.08 | G146: =_xlfn.NUMBERVALUE(IF(ISBLANK(INDIRECT("Etape!L38")),#N/A,INDIRECT("Etape!L38"))) ->  | I146: 29.82 | J146: 29.8 | K146: =Fiche_releve!$B$22 -> 30 | L146: 30.2 | M146: 30.18 | N146: =_xlfn.NUMBERVALUE(IF(ISBLANK(INDIRECT("Etape!M38")),#N/A,INDIRECT("Etape!M38"))) -> 
B147: 12.92 | C147: 12.9 | D147: =Fiche_releve!$B$20 -> 13 | E147: 13.1 | F147: 13.08 | G147: =_xlfn.NUMBERVALUE(IF(ISBLANK(INDIRECT("Etape!L39")),#N/A,INDIRECT("Etape!L39"))) ->  | I147: 29.82 | J147: 29.8 | K147: =Fiche_releve!$B$22 -> 30 | L147: 30.2 | M147: 30.18 | N147: =_xlfn.NUMBERVALUE(IF(ISBLANK(INDIRECT("Etape!M39")),#N/A,INDIRECT("Etape!M39"))) -> 
B148: 12.92 | C148: 12.9 | D148: =Fiche_releve!$B$20 -> 13 | E148: 13.1 | F148: 13.08 | G148: =_xlfn.NUMBERVALUE(IF(ISBLANK(INDIRECT("Etape!L40")),#N/A,INDIRECT("Etape!L40"))) ->  | I148: 29.82 | J148: 29.8 | K148: =Fiche_releve!$B$22 -> 30 | L148: 30.2 | M148: 30.18 | N148: =_xlfn.NUMBERVALUE(IF(ISBLANK(INDIRECT("Etape!M40")),#N/A,INDIRECT("Etape!M40"))) -> 
B149: 12.92 | C149: 12.9 | D149: =Fiche_releve!$B$20 -> 13 | E149: 13.1 | F149: 13.08 | G149: =_xlfn.NUMBERVALUE(IF(ISBLANK(INDIRECT("Etape!L41")),#N/A,INDIRECT("Etape!L41"))) ->  | I149: 29.82 | J149: 29.8 | K149: =Fiche_releve!$B$22 -> 30 | L149: 30.2 | M149: 30.18 | N149: =_xlfn.NUMBERVALUE(IF(ISBLANK(INDIRECT("Etape!M41")),#N/A,INDIRECT("Etape!M41"))) -> 
B150: 12.92 | C150: 12.9 | D150: =Fiche_releve!$B$20 -> 13 | E150: 13.1 | F150: 13.08 | G150: =_xlfn.NUMBERVALUE(IF(ISBLANK(INDIRECT("Etape!L42")),#N/A,INDIRECT("Etape!L42"))) ->  | I150: 29.82 | J150: 29.8 | K150: =Fiche_releve!$B$22 -> 30 | L150: 30.2 | M150: 30.18 | N150: =_xlfn.NUMBERVALUE(IF(ISBLANK(INDIRECT("Etape!M42")),#N/A,INDIRECT("Etape!M42"))) -> 
B151: 12.92 | C151: 12.9 | D151: =Fiche_releve!$B$20 -> 13 | E151: 13.1 | F151: 13.08 | G151: =_xlfn.NUMBERVALUE(IF(ISBLANK(INDIRECT("Etape!L43")),#N/A,INDIRECT("Etape!L43"))) ->  | I151: 29.82 | J151: 29.8 | K151: =Fiche_releve!$B$22 -> 30 | L151: 30.2 | M151: 30.18 | N151: =_xlfn.NUMBERVALUE(IF(ISBLANK(INDIRECT("Etape!M43")),#N/A,INDIRECT("Etape!M43"))) -> 
B152: 12.92 | C152: 12.9 | D152: =Fiche_releve!$B$20 -> 13 | E152: 13.1 | F152: 13.08 | G152: =_xlfn.NUMBERVALUE(IF(ISBLANK(INDIRECT("Etape!L44")),#N/A,INDIRECT("Etape!L44"))) ->  | I152: 29.82 | J152: 29.8 | K152: =Fiche_releve!$B$22 -> 30 | L152: 30.2 | M152: 30.18 | N152: =_xlfn.NUMBERVALUE(IF(ISBLANK(INDIRECT("Etape!M44")),#N/A,INDIRECT("Etape!M44"))) -> 
B153: 12.92 | C153: 12.9 | D153: =Fiche_releve!$B$20 -> 13 | E153: 13.1 | F153: 13.08 | G153: =_xlfn.NUMBERVALUE(IF(ISBLANK(INDIRECT("Etape!L45")),#N/A,INDIRECT("Etape!L45"))) ->  | I153: 29.82 | J153: 29.8 | K153: =Fiche_releve!$B$22 -> 30 | L153: 30.2 | M153: 30.18 | N153: =_xlfn.NUMBERVALUE(IF(ISBLANK(INDIRECT("Etape!M45")),#N/A,INDIRECT("Etape!M45"))) -> 
B154: 12.92 | C154: 12.9 | D154: =Fiche_releve!$B$20 -> 13 | E154: 13.1 | F154: 13.08 | G154: =_xlfn.NUMBERVALUE(IF(ISBLANK(INDIRECT("Etape!L46")),#N/A,INDIRECT("Etape!L46"))) ->  | I154: 29.82 | J154: 29.8 | K154: =Fiche_releve!$B$22 -> 30 | L154: 30.2 | M154: 30.18 | N154: =_xlfn.NUMBERVALUE(IF(ISBLANK(INDIRECT("Etape!M46")),#N/A,INDIRECT("Etape!M46"))) -> 
B155: 12.92 | C155: 12.9 | D155: =Fiche_releve!$B$20 -> 13 | E155: 13.1 | F155: 13.08 | G155: =_xlfn.NUMBERVALUE(IF(ISBLANK(INDIRECT("Etape!L47")),#N/A,INDIRECT("Etape!L47"))) ->  | I155: 29.82 | J155: 29.8 | K155: =Fiche_releve!$B$22 -> 30 | L155: 30.2 | M155: 30.18 | N155: =_xlfn.NUMBERVALUE(IF(ISBLANK(INDIRECT("Etape!M47")),#N/A,INDIRECT("Etape!M47"))) -> 
B156: 12.92 | C156: 12.9 | D156: =Fiche_releve!$B$20 -> 13 | E156: 13.1 | F156: 13.08 | G156: =_xlfn.NUMBERVALUE(IF(ISBLANK(INDIRECT("Etape!L48")),#N/A,INDIRECT("Etape!L48"))) ->  | I156: 29.82 | J156: 29.8 | K156: =Fiche_releve!$B$22 -> 30 | L156: 30.2 | M156: 30.18 | N156: =_xlfn.NUMBERVALUE(IF(ISBLANK(INDIRECT("Etape!M48")),#N/A,INDIRECT("Etape!M48"))) -> 
B157: 12.92 | C157: 12.9 | D157: =Fiche_releve!$B$20 -> 13 | E157: 13.1 | F157: 13.08 | G157: =_xlfn.NUMBERVALUE(IF(ISBLANK(INDIRECT("Etape!L49")),#N/A,INDIRECT("Etape!L49"))) ->  | I157: 29.82 | J157: 29.8 | K157: =Fiche_releve!$B$22 -> 30 | L157: 30.2 | M157: 30.18 | N157: =_xlfn.NUMBERVALUE(IF(ISBLANK(INDIRECT("Etape!M49")),#N/A,INDIRECT("Etape!M49"))) -> 
B158: 12.92 | C158: 12.9 | D158: =Fiche_releve!$B$20 -> 13 | E158: 13.1 | F158: 13.08 | G158: =_xlfn.NUMBERVALUE(IF(ISBLANK(INDIRECT("Etape!L50")),#N/A,INDIRECT("Etape!L50"))) ->  | I158: 29.82 | J158: 29.8 | K158: =Fiche_releve!$B$22 -> 30 | L158: 30.2 | M158: 30.18 | N158: =_xlfn.NUMBERVALUE(IF(ISBLANK(INDIRECT("Etape!M50")),#N/A,INDIRECT("Etape!M50"))) -> 
B159: 12.92 | C159: 12.9 | D159: =Fiche_releve!$B$20 -> 13 | E159: 13.1 | F159: 13.08 | G159: =_xlfn.NUMBERVALUE(IF(ISBLANK(INDIRECT("Etape!L51")),#N/A,INDIRECT("Etape!L51"))) ->  | I159: 29.82 | J159: 29.8 | K159: =Fiche_releve!$B$22 -> 30 | L159: 30.2 | M159: 30.18 | N159: =_xlfn.NUMBERVALUE(IF(ISBLANK(INDIRECT("Etape!M51")),#N/A,INDIRECT("Etape!M51"))) -> 

Sheet BDD
A1: N° Affaire | B1: Date | C1: Opérateur | D1: NoPièce | E1: Cote 1 | F1: Cote 2 | G1: Cote 3 | H1: Cote 4 | I1: Cote 5 | J1: Cote 6 | K1: Cote 7 | L1: Cote 8 | M1: Cote 9 | N1: Cote 10 | O1: Cote 11 | P1: Cote 12 | Q1: Cote 13
B2: 00:00:00 | D2: 1 | F2: 2.01 | G2: 2.01 | H2: 21.01 | I2: 25 | J2: 2.02 | K2: 2.01 | L2: 13 | M2: 30
B3: 00:00:00 | D3: 5 | E3: 2.52 | F3: 2.02 | H3: 21.02 | J3: 1.97 | K3: 2.05 | L3: 14 | M3: 30.1
B4: 00:00:00 | D4: 9 | E4: 2.53 | F4: 2.03 | H4: 21.03 | K4: 2.004 | L4: 13 | M4: 30.9
B5: 00:00:00 | D5: 13 | E5: 2.57 | F5: 2 | H5: 21.06 | K5: 2.02 | L5: 13.02 | M5: 30.19
B6: 00:00:00 | D6: 17 | F6: 1.98 | H6: 21.07 | K6: 2.004 | L6: 13.09
B7: 00:00:00 | D7: 21 | F7: 2.01 | H7: 21.001 | L7: 13.02
B8: 00:00:00 | D8: 25 | F8: 2.03
B9: 00:00:00 | D9: 29
B10: 00:00:00 | D10: 33
B11: 00:00:00 | D11: 37
B12: 00:00:00 | D12: 41
B13: 00:00:00 | D13: 45
B14: 00:00:00 | D14: 49
B15: 00:00:00 | D15: 53
B16: 00:00:00 | D16: 57
B17: 00:00:00 | D17: 61
B18: 00:00:00 | D18: 65
B19: 00:00:00 | D19: 69
B20: 00:00:00 | D20: 73
B21: 00:00:00 | D21: 77
B22: 00:00:00 | D22: 81
B23: 00:00:00 | D23: 85
B24: 00:00:00 | D24: 89
B25: 00:00:00 | D25: 93
B26: 00:00:00 | D26: 97
B27: 00:00:00 | D27: 101
B28: 00:00:00 | D28: 105
B29: 00:00:00 | D29: 25 | F29: 2.03
B30: 00:00:00 | D30: 21 | F30: 2.01
B31: 00:00:00 | D31: 17 | F31: 1.98 | L31: 13.09
B32: 00:00:00 | D32: 17 | F32: 1.98
B33: 00:00:00 | D33: 13 | E33: 2.57 | F33: 2 | L33: 13.02 | M33: 30.19
B34: 00:00:00 | D34: 13 | F34: 2
B35: 00:00:00 | D35: 9 | E35: 2.53 | F35: 2.03 | K35: 2.1 | L35: 13 | M35: 30.9
B36: 00:00:00 | D36: 9 | F36: 2.03 | K36: 2.1
B37: 00:00:00 | D37: 9 | F37: 2.03
B38: 00:00:00 | D38: 5 | E38: 2.52 | F38: 2.02 | J38: 1.97 | K38: 2.05 | L38: 14 | M38: 30.1
B39: 00:00:00 | D39: 5 | F39: 2.02 | J39: 1.97 | K39: 2.05
B40: 00:00:00 | D40: 5 | F40: 2.02 | J40: 1.97
B41: 00:00:00 | D41: 5 | F41: 2.02
B42: 00:00:00 | D42: 1 | F42: 2.01 | G42: 2.01 | I42: 25 | J42: 2.02 | K42: 2.01 | L42: 13 | M42: 30
B43: 00:00:00 | D43: 1 | E43: 2.5 | F43: 2.01 | G43: 2.01 | I43: 25 | J43: 2.02 | K43: 2.01
B44: 00:00:00 | D44: 1 | E44: 2.5 | F44: 2.01 | G44: 2.01 | I44: 25 | J44: 2.02
B45: 00:00:00 | D45: 1 | F45: 2.01

Sheet Etape
A1: N° Affaire | B1: Date | C1: Opérateur | D1: NoPièce | E1: Cote 1 | F1: Cote 2 | G1: Cote 3 | H1: Cote 4 | I1: Cote 5 | J1: Cote 6 | K1: Cote 7 | L1: Cote 8 | M1: Cote 9 | N1: Cote 10 | O1: Cote 11 | P1: Cote 12 | Q1: Cote 13 | S1: Cette feuille permet de récupérer les 50 valeurs les plus récentes pour chaques cotes dans la base de données afin de les afficher dans les graphiques. Ces valeurs sont classées selon leur date, de la plus anciennes à la plus récentes puis selon leur NoPièce par ordre croissant. En cas de classement incorrect, vérifier le format des cellules dates. Ces cellules doivent être au format date. Vérifier dans : Données -> Convertir -> Suivant -> Suivant -> Date (JMA) Ou Clique droit->Format de cellule -> format personalisé -> type : 14/02/01
B2: 00:00:00 | D2: 1 | F2: 2.01 | G2: 2.01 | I2: 25 | J2: 2.02 | K2: 2.01 | L2: 13 | M2: 30
B3: 00:00:00 | D3: 1 | E3: 2.5 | F3: 2.01 | G3: 2.01 | I3: 25 | J3: 2.02 | K3: 2.01
B4: 00:00:00 | D4: 1 | E4: 2.5 | F4: 2.01 | G4: 2.01 | I4: 25 | J4: 2.02
B5: 00:00:00 | D5: 1 | F5: 2.01
B6: 00:00:00 | D6: 5 | E6: 2.52 | F6: 2.02 | J6: 1.97 | K6: 2.05 | L6: 14 | M6: 30.1
B7: 00:00:00 | D7: 5 | F7: 2.02 | J7: 1.97 | K7: 2.05
B8: 00:00:00 | D8: 5 | F8: 2.02 | J8: 1.97
B9: 00:00:00 | D9: 5 | F9: 2.02
B10: 00:00:00 | D10: 9 | E10: 2.53 | F10: 2.03 | K10: 2.1 | L10: 13 | M10: 30.9
B11: 00:00:00 | D11: 9 | F11: 2.03 | K11: 2.1
B12: 00:00:00 | D12: 9 | F12: 2.03
B13: 00:00:00 | D13: 13 | E13: 2.57 | F13: 2 | L13: 13.02 | M13: 30.19
B14: 00:00:00 | D14: 13 | F14: 2
B15: 00:00:00 | D15: 17 | F15: 1.98 | L15: 13.09
B16: 00:00:00 | D16: 17 | F16: 1.98
B17: 00:00:00 | D17: 21 | F17: 2.01
B18: 00:00:00 | D18: 25 | F18: 2.03
